Workbook

Sheet Charts

Sheet Sheet1
A1: Team | B1: (All)
A2: Name | B2: Mike.Hoffman | C2: 5v5 Score Adjusted
A4: Row Labels | B4: TOI/Gm | C4: CF% | D4: HSCF% | G4: TOI/Gm | H4: CF% | I4: HSCF% | J4: P60
A5: 2014-10-09 | B5: 9.2 | C5: 42.1 | D5: 22.7
A6: 2014-10-11 | B6: 10.6 | C6: 37.6 | D6: 70.3
A7: 2014-10-18 | B7: 11.5 | C7: 61.9 | D7: 57.7
A8: 2014-10-25 | B8: 12.8 | C8: 35 | D8: 53.1
A9: 2014-10-26 | B9: 8.2 | C9: 42.7 | D9: 100
A10: 2014-10-30 | B10: 10.4 | C10: 60.3 | D10: 62.3
A11: 2014-11-01 | B11: 12.5 | C11: 44 | D11: 43.2
A12: 2014-11-04 | B12: 9.3 | C12: 60.4 | D12: 100
A13: 2014-11-06 | B13: 8.7 | C13: 43.5 | D13: 19
A14: 2014-11-08 | B14: 11.2 | C14: 71.7 | D14: 74
A15: 2014-11-09 | B15: 9.6 | C15: 71 | D15: 79
A16: 2014-11-11 | B16: 9.7 | C16: 61 | D16: 81
A17: 2014-11-13 | B17: 9.2 | C17: 55.8 | D17: 0
A18: 2014-11-15 | B18: 9.7 | C18: 47.7 | D18: 55.6
A19: 2014-11-20 | B19: 10.3 | C19: 43.2 | D19: 32.9
A20: 2014-11-22 | B20: 9.8 | C20: 60.1 | D20: 65.4
A21: 2014-11-24 | B21: 9.5 | C21: 61.6 | D21: 0
A22: 2014-11-25 | B22: 9.9 | C22: 61.6 | D22: 46.3
A23: 2014-11-28 | B23: 11.1 | C23: 22.5 | D23: 0
A24: 2014-11-29 | B24: 10.8 | C24: 34.7 | D24: 37.6 | G24: =AVERAGE(B5:B24) -> 10.2 | H24: =AVERAGE(C5:C24) -> 50.92 | I24: 50.005
A25: 2014-12-02 | B25: 15.1 | C25: 63 | D25: 52.5 | G25: =AVERAGE(B6:B25) -> 10.495 | H25: =AVERAGE(C6:C25) -> 51.965 | I25: =AVERAGE(D6:D25) -> 51.495 | J25: =AVERAGE(E6:E25) -> 
A26: 2014-12-04 | B26: 15.7 | C26: 51.4 | D26: 21.1 | G26: 10.75 | H26: 52.655 | I26: 49.035
A27: 2014-12-06 | B27: 10.3 | C27: 53.7 | D27: 100 | G27: 10.69 | H27: 52.245 | I27: 51.15
A28: 2014-12-07 | B28: 14 | C28: 61.1 | D28: 59.2 | G28: 10.75 | H28: 53.55 | I28: 51.455
A29: 2014-12-11 | B29: 14.6 | C29: 41.6 | D29: 34.7 | G29: 11.07 | H29: 53.495 | I29: 48.19
A30: 2014-12-13 | B30: 9.8 | C30: 36.2 | D30: 55.6 | G30: 11.04 | H30: 52.29 | I30: 47.855
A31: 2014-12-15 | B31: 10.2 | C31: 36 | D31: 36.1 | G31: 10.925 | H31: 51.89 | I31: 47.5
A32: 2014-12-17 | B32: 9.9 | C32: 29.1 | D32: 0 | G32: 10.955 | H32: 50.325 | I32: 42.5
A33: 2014-12-19 | B33: 13.7 | C33: 56.9 | D33: 84.1 | G33: 11.205 | H33: 50.995 | I33: 45.755
A34: 2014-12-20 | B34: 12.6 | C34: 42.8 | D34: 64 | G34: 11.275 | H34: 49.55 | I34: 45.255
A35: 2014-12-22 | B35: 13.7 | C35: 48.2 | D35: 12.2 | G35: 11.48 | H35: 48.41 | I35: 41.915
A36: 2014-12-27 | B36: 11 | C36: 40.6 | D36: 46.8 | G36: 11.545 | H36: 47.39 | I36: 40.205
A37: 2014-12-29 | B37: 13.6 | C37: 76.7 | D37: 57.8 | G37: 11.765 | H37: 48.435 | I37: 43.095
A38: 2015-01-03 | B38: 10.6 | C38: 57 | D38: 64.6 | G38: 11.81 | H38: 48.9 | I38: 43.545
A39: 2015-01-04 | B39: 11.7 | C39: 28.8 | D39: 46 | G39: 11.88 | H39: 48.18 | I39: 44.2
A40: 2015-01-06 | B40: 13.1 | C40: 55 | D40: 70.2 | G40: 12.045 | H40: 47.925 | I40: 44.44
A41: 2015-01-08 | B41: 13.2 | C41: 64.2 | D41: 33.5 | G41: 12.23 | H41: 48.055 | I41: 46.115
A42: 2015-01-10 | B42: 7.7 | C42: 53.4 | D42: 27.5 | G42: 12.12 | H42: 47.645 | I42: 45.175
A43: 2015-01-13 | B43: 15 | C43: 59.4 | D43: 0 | G43: 12.315 | H43: 49.49 | I43: 45.175
A44: 2015-01-15 | B44: 10.1 | C44: 56.2 | D44: 100 | G44: 12.28 | H44: 50.565 | I44: 48.295
A45: 2015-01-17 | B45: 14.4 | C45: 69.2 | D45: 87.8 | G45: 12.245 | H45: 50.875 | I45: 50.06
A46: 2015-01-20 | B46: 15.9 | C46: 58.2 | D46: 41 | G46: 12.255 | H46: 51.215 | I46: 51.055
A47: 2015-01-21 | B47: 13.3 | C47: 47.2 | D47: 100 | G47: 12.405 | H47: 50.89 | I47: 51.055
A48: 2015-01-29 | B48: 10.8 | C48: 38 | D48: 27.3 | G48: 12.245 | H48: 49.735 | I48: 49.46
A49: 2015-01-31 | B49: 12 | C49: 38.4 | D49: 53.4 | G49: 12.115 | H49: 49.575 | I49: 50.395
A50: 2015-02-03 | B50: 14.4 | C50: 62.3 | D50: 100 | G50: 12.345 | H50: 50.88 | I50: 52.615
A51: 2015-02-05 | B51: 13.8 | C51: 55 | D51: 100 | G51: 12.525 | H51: 51.83 | I51: 55.81
A52: 2015-02-07 | B52: 9.7 | C52: 61.3 | D52: 44.4 | G52: 12.515 | H52: 53.44 | I52: 58.03
A53: 2015-02-10 | B53: 9.7 | C53: 53.9 | D53: 44.4 | G53: 12.315 | H53: 53.29 | I53: 56.045
A54: 2015-02-12 | B54: 10.2 | C54: 11.7 | D54: 0 | G54: 12.195 | H54: 51.735 | I54: 52.845
A55: 2015-02-14 | B55: 13.4 | C55: 60.9 | D55: 80.3 | G55: 12.18 | H55: 52.37 | I55: 56.25
A56: 2015-02-16 | B56: 12.1 | C56: 57.6 | D56: 51.8 | G56: 12.235 | H56: 53.22 | I56: 56.5
A57: 2015-02-18 | B57: 12.1 | C57: 53.9 | D57: 48.5 | G57: 12.16 | H57: 52.08 | I57: 56.035
A58: 2015-02-21 | B58: 10.4 | C58: 59.2 | D58: 42.4 | G58: 12.15 | H58: 52.19 | I58: 54.925
A59: 2015-02-25 | B59: 12.4 | C59: 68.6 | D59: 84.4 | G59: 12.185 | H59: 54.18 | I59: 56.845
A60: 2015-02-26 | B60: 12.6 | C60: 46.3 | D60: 51.2 | G60: 12.16 | H60: 53.745 | I60: 55.895
A61: 2015-02-28 | B61: 14 | C61: 45.1 | D61: 16 | G61: 12.2 | H61: 52.79 | I61: 55.02
A62: 2015-03-03 | B62: 11.2 | C62: 62.8 | D62: 66.6 | G62: 12.375 | H62: 53.26 | I62: 56.975
A63: 2015-03-04 | B63: 8.1 | C63: 25.6 | G63: 12.03 | H63: 51.57 | I63: 59.97368421
A64: 2015-03-06 | B64: 14.6 | C64: 64.4 | D64: 84.6 | G64: 12.255 | H64: 51.98 | I64: 59.16315789
A65: 2015-03-08 | B65: 11.9 | C65: 48.8 | D65: 41 | G65: 12.13 | H65: 50.96 | I65: 56.7
A66: 2015-03-10 | B66: 12.5 | C66: 48.9 | D66: 74.2 | G66: 11.96 | H66: 50.495 | I66: 58.44736842
A67: 2015-03-12 | B67: 16.4 | C67: 58.9 | D67: 0 | G67: 12.115 | H67: 51.08 | I67: 53.18421053
A68: 2015-03-13 | B68: 16 | C68: 53.4 | D68: 100 | G68: 12.375 | H68: 51.85 | I68: 57.01052632
A69: 2015-03-15 | B69: 12.8 | C69: 52.8 | D69: 0 | G69: 12.415 | H69: 52.57 | I69: 54.2
A70: 2015-03-17 | B70: 11.8 | C70: 48.1 | D70: 38.8 | G70: 12.285 | H70: 51.86 | I70: 50.97894737
A71: 2015-03-19 | B71: 10.9 | C71: 63.1 | D71: 84.7 | G71: 12.14 | H71: 52.265 | I71: 50.17368421
A72: 2015-03-21 | B72: 13.7 | C72: 42.1 | D72: 0 | G72: 12.34 | H72: 51.305 | I72: 47.83684211
A73: 2015-03-23 | B73: 13.9 | C73: 32.2 | D73: 59 | G73: 12.55 | H73: 50.22 | I73: 48.60526316
A74: 2015-03-26 | B74: 14.2 | C74: 31.2 | D74: 48.9 | G74: 12.75 | H74: 51.195 | I74: 51.17894737
A75: 2015-03-28 | B75: 12.8 | C75: 58.5 | D75: 70.8 | G75: 12.72 | H75: 51.075 | I75: 50.67894737
A76: 2015-03-29 | B76: 10.3 | C76: 63.6 | D76: 85.1 | G76: 12.63 | H76: 51.375 | I76: 52.43157895
A77: 2015-03-31 | B77: 9.4 | C77: 62.5 | D77: 73.5 | G77: 12.495 | H77: 51.805 | I77: 53.74736842
A78: 2015-04-02 | B78: 9 | C78: 73.8 | D78: 100 | G78: 12.425 | H78: 52.535 | I78: 56.77894737
A79: 2015-04-04 | B79: 8.3 | C79: 40.3 | D79: 57.3 | G79: 12.22 | H79: 51.12 | I79: 55.35263158
A80: 2015-04-05 | B80: 10 | C80: 58.6 | D80: 68.6 | G80: 12.09 | H80: 51.735 | I80: 56.26842105
A81: 2015-04-07 | B81: 10.3 | C81: 41.3 | D81: 65.3 | G81: 11.905 | H81: 51.545 | I81: 58.86315789
A82: 2015-04-09 | B82: 15.6 | C82: 47.5 | D82: 0 | G82: 12.125 | H82: 50.78 | I82: 55.35789474
A83: 2015-04-11 | B83: 8.3 | C83: 51.6 | G83: 12.135 | H83: 52.08 | I83: 55.35789474
A84: 2015-10-08 | B84: 16.7 | C84: 58.6 | D84: 35.9 | G84: 12.24 | H84: 51.79 | I84: 52.79473684
A85: 2015-10-10 | B85: 15.4 | C85: 53.4 | D85: 59.3 | G85: 12.415 | H85: 52.02 | I85: 53.75789474
A86: 2015-10-11 | B86: 12.9 | C86: 38.4 | D86: 34.9 | G86: 12.435 | H86: 51.495 | I86: 51.68947368
A87: 2015-10-14 | B87: 11.2 | C87: 52.2 | D87: 68.8 | G87: 12.175 | H87: 51.16 | I87: 55.31052632
A88: 2015-10-15 | B88: 16.2 | C88: 54.8 | D88: 68.7 | G88: 12.185 | H88: 51.23 | I88: 53.66315789
A89: 2015-10-17 | B89: 14.2 | C89: 57.2 | D89: 100 | G89: =AVERAGE(B70:B89) -> 12.255 | H89: =AVERAGE(C70:C89) -> 51.45 | I89: =AVERAGE(D70:D89) -> 58.92631579 | J89: =AVERAGE(E70:E89) -> 
A90: 2015-10-22 | B90: 10.3 | C90: 38.5 | D90: 0 | G90: 12.18 | H90: 50.97 | I90: 56.88421053
A91: 2015-11-03 | B91: 15.6 | C91: 34.9 | D91: 52.5 | G91: 12.415 | H91: 49.56 | I91: 55.18947368
A92: 2015-11-05 | B92: 13.1 | C92: 45.5 | D92: 57.5 | G92: 12.385 | H92: 49.73 | I92: 58.21578947
A93: 2015-11-07 | B93: 18.4 | C93: 34.5 | D93: 52.5 | G93: 12.61 | H93: 49.845 | I93: 57.87368421
A94: 2015-11-10 | B94: 15.3 | C94: 46.7 | D94: 58.5 | G94: 12.665 | H94: 50.62 | I94: 58.37894737
A95: 2015-11-12 | B95: 12.1 | C95: 61.7 | D95: 100 | G95: 12.63 | H95: 50.78 | I95: 59.91578947
A96: 2015-11-14 | B96: 15.8 | C96: 70.5 | D96: 55.2 | G96: 12.905 | H96: 51.125 | I96: 58.34210526
A97: 2015-11-16 | B97: 16.9 | C97: 57.7 | D97: 76.9 | G97: 13.28 | H97: 50.885 | I97: 58.52105263
A98: 2015-11-19 | B98: 11.5 | C98: 45.7 | D98: 20.4 | G98: 13.405 | H98: 49.48 | I98: 54.33157895
A99: 2015-11-21 | B99: 12 | C99: 43.4 | D99: 100 | G99: 13.59 | H99: 49.635 | I99: 56.57894737
A100: 2015-11-24 | B100: 14.2 | C100: 29.9 | D100: 0 | G100: 13.8 | H100: 48.2 | I100: 52.96842105
A101: 2015-11-25 | B101: 11 | C101: 48.2 | D101: 77.5 | G101: 13.835 | H101: 48.545 | I101: 53.61052632
A102: 2015-11-28 | B102: 15.3 | C102: 61.4 | D102: 55.7 | G102: 13.82 | H102: 49.24 | I102: 56.54210526
A103: 2015-12-01 | B103: 16.7 | C103: 49.2 | D103: 38.9 | G103: 14.24 | H103: 49.12 | I103: 55.66
A104: 2015-12-03 | B104: 18.1 | C104: 32.5 | D104: 30.5 | G104: 14.31 | H104: 47.815 | I104: 55.39
A105: 2015-12-05 | B105: 14.5 | C105: 32.9 | D105: 39 | G105: 14.265 | H105: 46.79 | I105: 54.375
A106: 2015-12-06 | B106: 16 | C106: 53.6 | D106: 51 | G106: 14.42 | H106: 47.55 | I106: 55.18
A107: 2015-12-08 | B107: 12.4 | C107: 56 | D107: 23.1 | G107: 14.48 | H107: 47.74 | I107: 52.895
A108: 2015-12-10 | B108: 15.4 | C108: 40.7 | D108: 57.7 | G108: 14.44 | H108: 47.035 | I108: 52.345
A109: 2015-12-12 | B109: 14.5 | C109: 59.5 | D109: 55 | G109: 14.455 | H109: 47.15 | I109: 50.095
A110: 2015-12-14 | B110: 10.6 | C110: 62.8 | D110: 100 | G110: 14.47 | H110: 48.365 | I110: 55.095
A111: 2015-12-16 | B111: 13.3 | C111: 48.7 | D111: 25.3 | G111: 14.355 | H111: 49.055 | I111: 53.735
A112: 2015-12-18 | B112: 13.3 | C112: 46.9 | D112: 36.6 | G112: 14.365 | H112: 49.125 | I112: 52.69
A113: 2015-12-20 | B113: 15.1 | C113: 35.9 | D113: 41 | G113: 14.2 | H113: 49.195 | I113: 52.115
A114: 2015-12-22 | B114: 14.4 | C114: 43.5 | D114: 0 | G114: 14.155 | H114: 49.035 | I114: 49.19
A115: 2015-12-27 | B115: 15.3 | C115: 44 | D115: 100 | G115: 14.315 | H115: 48.15 | I115: 49.19
A116: 2015-12-29 | B116: 12.2 | C116: 40.9 | D116: 49.5 | G116: 14.135 | H116: 46.67 | I116: 48.905
A117: 2015-12-30 | B117: 12.2 | C117: 63 | D117: 0 | G117: 13.9 | H117: 46.935 | I117: 45.06
A118: 2016-01-03 | B118: 18.1 | C118: 39 | D118: 21.6 | G118: 14.23 | H118: 46.6 | I118: 45.12
A119: 2016-01-04 | B119: 15.4 | C119: 20.9 | G119: 14.4 | H119: 45.475 | I119: 42.23157895
A120: 2016-01-07 | B120: 12.4 | C120: 43.3 | D120: 73.7 | G120: 14.31 | H120: 46.145 | I120: 46.11052632
A121: 2016-01-09 | B121: 14.2 | C121: 45.6 | D121: 18.9 | G121: 14.47 | H121: 46.015 | I121: 43.02631579
A122: 2016-01-10 | B122: 10.6 | C122: 44.6 | D122: 49.3 | G122: 14.235 | H122: 45.175 | I122: 42.68947368
A123: 2016-01-13 | B123: 13.9 | C123: 56 | D123: 43.8 | G123: 14.095 | H123: 45.515 | I123: 42.94736842
A124: 2016-01-16 | B124: 14 | C124: 42.4 | D124: 51.7 | G124: 13.89 | H124: 46.01 | I124: 44.06315789
A125: 2016-01-18 | B125: 6.5 | C125: 13 | D125: 22 | G125: 13.49 | H125: 45.015 | I125: 43.16842105
A126: 2016-01-21 | B126: 13.3 | C126: 43.9 | D126: 64.7 | G126: 13.355 | H126: 44.53 | I126: 43.88947368
A127: 2016-01-22 | B127: 16.6 | C127: 46.5 | D127: 59.9 | G127: 13.565 | H127: 44.055 | I127: 45.82631579
A128: 2016-01-24 | B128: 13.2 | C128: 61.8 | D128: 53.6 | G128: 13.455 | H128: 45.11 | I128: 45.61052632
A129: 2016-01-26 | B129: 16 | C129: 67.6 | D129: 60.3 | G129: 13.53 | H129: 45.515 | I129: 45.88947368
A130: 2016-02-02 | B130: 12.1 | C130: 31.5 | D130: 40.6 | G130: 13.605 | H130: 43.95 | I130: 42.76315789
A131: 2016-02-04 | B131: 13.8 | C131: 47.4 | D131: 24.8 | G131: 13.63 | H131: 43.885 | I131: 42.73684211
A132: 2016-02-06 | B132: 11.8 | C132: 63.3 | D132: 100 | G132: 13.555 | H132: 44.705 | I132: 46.07368421
A133: 2016-02-08 | B133: 11.9 | C133: 45.2 | D133: 64.4 | G133: 13.395 | H133: 45.17 | I133: 47.30526316
A134: 2016-02-10 | B134: 12.2 | C134: 39.8 | D134: 31.5 | G134: 13.285 | H134: 44.985 | I134: 48.96315789
A135: 2016-02-11 | B135: 10.2 | C135: 51.8 | D135: 0 | G135: 13.03 | H135: 45.375 | I135: 43.7
A136: 2016-02-13 | B136: 13.7 | C136: 51.2 | D136: 59.9 | G136: 13.105 | H136: 45.89 | I136: 44.24736842
A137: 2016-02-16 | B137: 15.2 | C137: 43 | D137: 39.1 | G137: 13.255 | H137: 44.89 | I137: 46.30526316
A138: 2016-02-18 | B138: 12.8 | C138: 44.8 | D138: 0 | G138: 12.99 | H138: 45.18 | I138: 45.16842105
A139: 2016-02-20 | B139: 16.3 | C139: 31.5 | D139: 0 | G139: 13.035 | H139: 45.71 | I139: 42.91
A140: 2016-02-23 | B140: 13.2 | C140: 68.9 | D140: 72.2 | G140: 13.075 | H140: 46.99 | I140: 42.835
A141: 2016-02-25 | B141: 15.2 | C141: 51.2 | D141: 14 | G141: 13.125 | H141: 47.27 | I141: 42.59
G142: 13.25789474 | H142: 47.41052632 | I142: 42.23684211
G143: 13.22222222 | H143: 46.93333333 | I143: 42.15
G144: 13.17647059 | H144: 47.2 | I144: 41.58823529
G145: 13.59375 | H145: 49.3375 | I145: 42.8125
G146: 13.61333333 | H146: 49.7 | I146: 41.35333333
G147: 13.4 | H147: 49.92857143 | I147: 40.02857143
G148: 13.41538462 | H148: 49.01538462 | I148: 38.98461538
G149: 13.2 | H149: 47.46666667 | I149: 37.20833333
G150: 13.3 | H150: 48.91818182 | I150: 36.9
G151: 13.25 | H151: 49.07 | I151: 38.11
G152: 13.41111111 | H152: 47.48888889 | I152: 31.23333333
G153: =AVERAGE(B134:B153) -> 13.6 | H153: =AVERAGE(C134:C153) -> 47.775 | I153: =AVERAGE(D134:D153) -> 27.0875 | J153: =AVERAGE(E134:E153) -> 
G154: 13.8 | H154: 48.91428571 | I154: 26.45714286
G155: 14.4 | H155: 48.43333333 | I155: 30.86666667
G156: 14.54 | H156: 47.88 | I156: 25.06
G157: 14.375 | H157: 49.1 | I157: 21.55
G158: 14.9 | H158: 50.53333333 | I158: 28.73333333
G159: 14.2 | H159: 60.05 | I159: 43.1
G160: 15.2 | H160: 51.2 | I160: 14
G217: =AVERAGE(B198:B217) ->  | H217: =AVERAGE(C198:C217) ->  | I217: =AVERAGE(D198:D217) ->  | J217: =AVERAGE(E198:E217) -> 
G281: =AVERAGE(B262:B281) ->  | H281: =AVERAGE(C262:C281) ->  | I281: =AVERAGE(D262:D281) ->  | J281: =AVERAGE(E262:E281) -> 
G345: =AVERAGE(B326:B345) ->  | H345: =AVERAGE(C326:C345) ->  | I345: =AVERAGE(D326:D345) ->  | J345: =AVERAGE(E326:E345) -> 
G409: =AVERAGE(B390:B409) ->  | H409: =AVERAGE(C390:C409) ->  | I409: =AVERAGE(D390:D409) ->  | J409: =AVERAGE(E390:E409) -> 

Sheet Sheet1 (2)
A1: Team | B1: (All) | L1: Team | M1: (All)
A2: Name | B2: Mike.Hoffman | C2: 5v5 Score Adjusted | L2: Name | M2: Mike.Hoffman | N2: 5v5 Score Adjusted
A4: Row Labels | B4: TOI/Gm | C4: PSh% | D4: OSh% | G4: TOI/Gm | H4: PSh% | I4: OSh% | J4: P60 | L4: Row Labels | M4: iHSC | N4: iSC | O4: HSCF%Rel | P4: GF60 | R4: iHSC | S4: iSC | T4: HSCF%Rel | U4: GF60
A5: 2011-12-23 | B5: 9.8 | C5: 0 | D5: 0 | L5: 2011-12-23 | M5: 0 | N5: 1 | O5: -19.1 | P5: 0
A6: 2013-03-28 | B6: 14 | C6: 0 | D6: 0 | L6: 2013-03-28 | M6: 2 | N6: 2 | O6: 56.5 | P6: 0
A7: 2013-03-30 | B7: 12.1 | C7: 0 | D7: 0 | L7: 2013-03-30 | M7: 1 | N7: 2 | O7: -2.7 | P7: 0
A8: 2013-04-02 | B8: 10.3 | C8: 0 | D8: 0 | L8: 2013-04-02 | M8: 1 | N8: 3 | O8: 2.1 | P8: 0
A9: 2013-12-03 | B9: 9.8 | C9: 0 | D9: 0 | L9: 2013-12-03 | M9: 0 | N9: 0 | O9: -55.5 | P9: 0
A10: 2013-12-05 | B10: 9.8 | C10: 0 | D10: 0 | L10: 2013-12-05 | M10: 0 | N10: 2 | O10: -42.6 | P10: 0
A11: 2013-12-07 | B11: 4 | C11: 0 | D11: 0 | L11: 2013-12-07 | M11: 1 | N11: 2 | O11: 37.6 | P11: 0
A12: 2014-02-27 | B12: 8.4 | C12: 0 | D12: 9.2 | L12: 2014-02-27 | M12: 1 | N12: 1 | O12: 49.2 | P12: 7.2
A13: 2014-03-02 | B13: 10.2 | C13: 0 | D13: 0 | L13: 2014-03-02 | M13: 0 | N13: 1 | O13: -80 | P13: 0
A14: 2014-03-04 | B14: 11.5 | C14: 0 | D14: 14.3 | L14: 2014-03-04 | M14: 0 | N14: 0 | O14: -55.1 | P14: 5.2
A15: 2014-03-05 | B15: 8.6 | C15: 0 | D15: 0 | L15: 2014-03-05 | M15: 0 | N15: 1 | O15: 33.3 | P15: 0
A16: 2014-03-08 | B16: 11.2 | C16: 0 | D16: 11.7 | L16: 2014-03-08 | M16: 2 | N16: 2 | O16: 46.5 | P16: 5.3
A17: 2014-03-10 | B17: 16.9 | C17: 0 | D17: 9.2 | L17: 2014-03-10 | M17: 0 | N17: 1 | O17: -2.5 | P17: 3.6
A18: 2014-03-15 | B18: 8 | C18: 0 | D18: 0 | L18: 2014-03-15 | M18: 2 | N18: 3 | O18: 50.1 | P18: 0
A19: 2014-03-16 | B19: 9.8 | C19: 0 | D19: 0 | L19: 2014-03-16 | M19: 1 | N19: 2 | O19: -0.6 | P19: 0
A20: 2014-03-18 | B20: 12.9 | C20: 0 | D20: 12 | L20: 2014-03-18 | M20: 1 | N20: 5 | O20: -25.4 | P20: 4.6
A21: 2014-03-20 | B21: 9.2 | C21: 0 | D21: 0 | L21: 2014-03-20 | M21: 1 | N21: 2 | O21: 5.5 | P21: 0
A22: 2014-03-22 | B22: 8.3 | C22: 0 | D22: 0 | L22: 2014-03-22 | M22: 0 | N22: 1 | O22: 58.4 | P22: 0
A23: 2014-03-24 | B23: 6.2 | C23: 0 | D23: 0 | L23: 2014-03-24 | M23: 0 | N23: 1 | O23: -55.2 | P23: 0
A24: 2014-03-25 | B24: 9.2 | C24: 0 | D24: 0 | G24: =AVERAGE(B5:B24) -> 10.01 | H24: =AVERAGE(C5:C24) -> 0 | I24: 2.82 | L24: 2014-03-25 | M24: 1 | N24: 3 | O24: 0 | P24: 0 | R24: =AVERAGE(M5:M24) -> 0.7 | S24: =AVERAGE(N5:N24) -> 1.75 | T24: =AVERAGE(O5:O24) -> 0.025 | U24: =AVERAGE(P5:P24) -> 1.295
A25: 2014-03-28 | B25: 7.3 | C25: 0 | D25: 0 | G25: =AVERAGE(B6:B25) -> 9.885 | H25: 0 | I25: 2.82 | L25: 2014-03-28 | M25: 0 | N25: 0 | O25: -17.2 | P25: 0 | R25: =AVERAGE(M6:M25) -> 0.7 | S25: 1.7 | T25: 0.12 | U25: 1.295
A26: 2014-03-30 | B26: 13.4 | C26: 0 | D26: 11.4 | G26: 9.855 | H26: 0 | I26: 3.39 | L26: 2014-03-30 | M26: 1 | N26: 6 | O26: -31.3 | P26: 4.5 | R26: 0.65 | S26: 1.9 | T26: -4.27 | U26: 1.52
A27: 2014-03-31 | B27: 13.4 | C27: 0 | D27: 0 | G27: 9.92 | H27: 0 | I27: 3.39 | L27: 2014-03-31 | M27: 1 | N27: 3 | O27: -32.6 | P27: 0 | R27: 0.65 | S27: 1.95 | T27: -5.765 | U27: 1.52
A28: 2014-04-02 | B28: 14.3 | C28: 0 | D28: 0 | G28: 10.12 | H28: 0 | I28: 3.39 | L28: 2014-04-02 | M28: 0 | N28: 2 | O28: 7.3 | P28: 0 | R28: 0.6 | S28: 1.9 | T28: -5.505 | U28: 1.52
A29: 2014-04-04 | B29: 11.2 | C29: 0 | D29: 0 | G29: 10.19 | H29: 0 | I29: 3.39 | L29: 2014-04-04 | M29: 0 | N29: 3 | O29: 1.1 | P29: 0 | R29: 0.6 | S29: 2.05 | T29: -2.675 | U29: 1.52
A30: 2014-04-05 | B30: 9.9 | C30: 0 | D30: 0 | G30: 10.195 | H30: 0 | I30: 3.39 | L30: 2014-04-05 | M30: 0 | N30: 0 | O30: -3.8 | P30: 0 | R30: 0.6 | S30: 1.95 | T30: -0.735 | U30: 1.52
A31: 2014-04-10 | B31: 9.8 | C31: 0 | D31: 34.6 | G31: 10.485 | H31: 0 | I31: 5.12 | L31: 2014-04-10 | M31: 2 | N31: 2 | O31: -10.6 | P31: 6.1 | R31: 0.65 | S31: 1.95 | T31: -3.145 | U31: 1.825
A32: 2014-04-12 | B32: 11.4 | C32: 0 | D32: 0 | G32: 10.635 | H32: 0 | I32: 4.66 | L32: 2014-04-12 | M32: 0 | N32: 1 | O32: -66.2 | P32: 0 | R32: 0.6 | S32: 1.95 | T32: -8.915 | U32: 1.465
A33: 2014-04-13 | B33: 11.7 | C33: 0 | D33: 0 | G33: 10.71 | H33: 0 | I33: 4.66 | L33: 2014-04-13 | M33: 2 | N33: 3 | O33: 2.7 | P33: 0 | R33: 0.7 | S33: 2.05 | T33: -4.78 | U33: 1.465
A34: 2014-10-09 | B34: 9.2 | C34: 0 | D34: 0 | G34: 10.595 | H34: 0 | I34: 3.945 | L34: 2014-10-09 | M34: 1 | N34: 2 | O34: -15.9 | P34: 0 | R34: 0.75 | S34: 2.15 | T34: -2.82 | U34: 1.205
A35: 2014-10-11 | B35: 10.6 | C35: 0 | D35: 0 | G35: 10.695 | H35: 0 | I35: 3.945 | L35: 2014-10-11 | M35: 0 | N35: 0 | O35: 32.5 | P35: 0 | R35: 0.75 | S35: 2.1 | T35: -2.86 | U35: 1.205
A36: 2014-10-18 | B36: 11.5 | C36: 33.3 | D36: 23.5 | G36: 10.71 | H36: 1.665 | I36: 4.535 | L36: 2014-10-18 | M36: 2 | N36: 2 | O36: 15.3 | P36: 10.5 | R36: 0.75 | S36: 2.1 | T36: -4.42 | U36: 1.465
A37: 2014-10-25 | B37: 12.8 | C37: 0 | D37: 0 | G37: 10.505 | H37: 1.665 | I37: 4.075 | L37: 2014-10-25 | M37: 0 | N37: 1 | O37: 11.1 | P37: 0 | R37: 0.75 | S37: 2.1 | T37: -3.74 | U37: 1.285
A38: 2014-10-26 | B38: 8.2 | C38: 0 | D38: 0 | G38: 10.515 | H38: 1.665 | I38: 4.075 | L38: 2014-10-26 | M38: 1 | N38: 1 | O38: 41.1 | P38: 0 | R38: 0.7 | S38: 2 | T38: -4.19 | U38: 1.285
A39: 2014-10-30 | B39: 10.4 | C39: 0 | D39: 15.5 | G39: 10.545 | H39: 1.665 | I39: 4.85 | L39: 2014-10-30 | M39: 2 | N39: 2 | O39: 16.9 | P39: 5.7 | R39: 0.75 | S39: 2 | T39: -3.315 | U39: 1.57
A40: 2014-11-01 | B40: 12.5 | C40: 0 | D40: 18 | G40: 10.525 | H40: 1.665 | I40: 5.15 | L40: 2014-11-01 | M40: 1 | N40: 4 | O40: 4.4 | P40: 4.8 | R40: 0.75 | S40: 1.95 | T40: -1.825 | U40: 1.58
A41: 2014-11-04 | B41: 9.3 | C41: 0 | D41: 11.6 | G41: 10.53 | H41: 1.665 | I41: 5.73 | L41: 2014-11-04 | M41: 0 | N41: 5 | O41: 44.5 | P41: 6.4 | R41: 0.7 | S41: 2.1 | T41: 0.125 | U41: 1.9
A42: 2014-11-06 | B42: 8.7 | C42: 50 | D42: 31.5 | G42: 10.55 | H42: 4.165 | I42: 7.305 | L42: 2014-11-06 | M42: 1 | N42: 3 | O42: -24.9 | P42: 13.8 | R42: 0.75 | S42: 2.2 | T42: -4.04 | U42: 2.59
A43: 2014-11-08 | B43: 11.2 | C43: 0 | D43: 0 | G43: 10.8 | H43: 4.165 | I43: 7.305 | L43: 2014-11-08 | M43: 1 | N43: 5 | O43: 26.3 | P43: 0 | R43: 0.8 | S43: 2.4 | T43: 0.035 | U43: 2.59
A44: 2014-11-09 | B44: 9.6 | C44: 33.3 | D44: 13.6 | G44: 10.82 | H44: 5.83 | I44: 7.985 | L44: 2014-11-09 | M44: 3 | N44: 4 | O44: 23.4 | P44: 6.3 | R44: 0.9 | S44: 2.45 | T44: 1.205 | U44: 2.905
A45: 2014-11-11 | B45: 9.7 | C45: 100 | D45: 22.9 | G45: 10.94 | H45: 10.83 | I45: 9.13 | L45: 2014-11-11 | M45: 1 | N45: 1 | O45: 54.8 | P45: 12.4 | R45: 0.95 | S45: 2.5 | T45: 4.805 | U45: 3.525
A46: 2014-11-13 | B46: 9.2 | C46: 25 | D46: 12.6 | G46: 10.73 | H46: 12.08 | I46: 9.19 | L46: 2014-11-13 | M46: 0 | N46: 2 | O46: -26.7 | P46: 6.5 | R46: 0.9 | S46: 2.3 | T46: 5.035 | U46: 3.625
A47: 2014-11-15 | B47: 9.7 | C47: 0 | D47: 0 | G47: 10.545 | H47: 12.08 | I47: 9.19 | L47: 2014-11-15 | M47: 0 | N47: 1 | O47: 5.4 | P47: 0 | R47: 0.85 | S47: 2.2 | T47: 6.935 | U47: 3.625
A48: 2014-11-20 | B48: 10.3 | C48: 0 | D48: 0 | G48: 10.345 | H48: 12.08 | I48: 9.19 | L48: 2014-11-20 | M48: 1 | N48: 2 | O48: -18.6 | P48: 0 | R48: 0.9 | S48: 2.2 | T48: 5.64 | U48: 3.625
A49: 2014-11-22 | B49: 9.8 | C49: 0 | D49: 0 | G49: 10.275 | H49: 12.08 | I49: 9.19 | L49: 2014-11-22 | M49: 0 | N49: 2 | O49: 12 | P49: 0 | R49: 0.9 | S49: 2.15 | T49: 6.185 | U49: 3.625
A50: 2014-11-24 | B50: 9.5 | C50: 0 | D50: 0 | G50: 10.255 | H50: 12.08 | I50: 9.19 | L50: 2014-11-24 | M50: 0 | N50: 2 | O50: -32 | P50: 0 | R50: 0.9 | S50: 2.25 | T50: 4.775 | U50: 3.625
A51: 2014-11-25 | B51: 9.9 | C51: 0 | D51: 0 | G51: 10.26 | H51: 12.08 | I51: 7.46 | L51: 2014-11-25 | M51: 0 | N51: 3 | O51: -17.7 | P51: 0 | R51: 0.8 | S51: 2.3 | T51: 4.42 | U51: 3.32
A52: 2014-11-28 | B52: 11.1 | C52: 0 | D52: 0 | G52: 10.245 | H52: 12.08 | I52: 7.46 | L52: 2014-11-28 | M52: 0 | N52: 1 | O52: -38.4 | P52: 0 | R52: 0.8 | S52: 2.3 | T52: 5.81 | U52: 3.32
A53: 2014-11-29 | B53: 10.8 | C53: 0 | D53: 0 | G53: 10.2 | H53: 12.08 | I53: 7.46 | L53: 2014-11-29 | M53: 0 | N53: 2 | O53: 9.4 | P53: 0 | R53: 0.7 | S53: 2.25 | T53: 6.145 | U53: 3.32
A54: 2014-12-02 | B54: 15.1 | C54: 100 | D54: 25.3 | G54: 10.495 | H54: 17.08 | I54: 8.725 | L54: 2014-12-02 | M54: 1 | N54: 3 | O54: 9.6 | P54: 4 | R54: 0.7 | S54: 2.3 | T54: 7.42 | U54: 3.52
A55: 2014-12-04 | B55: 15.7 | C55: 0 | D55: 0 | G55: 10.75 | H55: 17.08 | I55: 8.725 | L55: 2014-12-04 | M55: 0 | N55: 2 | O55: -28.8 | P55: 0 | R55: 0.7 | S55: 2.4 | T55: 4.355 | U55: 3.52
A56: 2014-12-06 | B56: 10.3 | C56: 0 | D56: 16.7 | G56: 10.69 | H56: 15.415 | I56: 8.385 | L56: 2014-12-06 | M56: 2 | N56: 3 | O56: 23.3 | P56: 5.8 | R56: 0.7 | S56: 2.45 | T56: 4.755 | U56: 3.285
A57: 2014-12-07 | B57: 14 | C57: 0 | D57: 23.4 | G57: 10.75 | H57: 15.415 | I57: 9.555 | L57: 2014-12-07 | M57: 1 | N57: 5 | O57: 15.2 | P57: 8.6 | R57: 0.75 | S57: 2.65 | T57: 4.96 | U57: 3.715
A58: 2014-12-11 | B58: 14.6 | C58: 0 | D58: 0 | G58: 11.07 | H58: 15.415 | I58: 9.555 | L58: 2014-12-11 | M58: 1 | N58: 3 | O58: -11.3 | P58: 0 | R58: 0.75 | S58: 2.75 | T58: 2.34 | U58: 3.715
A59: 2014-12-13 | B59: 9.8 | C59: 0 | D59: 20.4 | G59: 11.04 | H59: 15.415 | I59: 9.8 | L59: 2014-12-13 | M59: 0 | N59: 2 | O59: 36.8 | P59: 6.1 | R59: 0.65 | S59: 2.75 | T59: 3.335 | U59: 3.735
A60: 2014-12-15 | B60: 10.2 | C60: 0 | D60: 45 | G60: 10.925 | H60: 15.415 | I60: 11.15 | L60: 2014-12-15 | M60: 1 | N60: 1 | O60: -25 | P60: 5.9 | R60: 0.65 | S60: 2.6 | T60: 1.865 | U60: 3.79
A61: 2014-12-17 | B61: 9.9 | C61: 0 | D61: 0 | G61: 10.955 | H61: 15.415 | I61: 10.57 | L61: 2014-12-17 | M61: 0 | N61: 1 | O61: -52.8 | P61: 0 | R61: 0.65 | S61: 2.4 | T61: -3 | U61: 3.47
A62: 2014-12-19 | B62: 13.7 | C62: 66.7 | D62: 24.8 | G62: 11.205 | H62: 16.25 | I62: 10.235 | L62: 2014-12-19 | M62: 2 | N62: 4 | O62: 34.2 | P62: 13.2 | R62: 0.7 | S62: 2.45 | T62: -0.045 | U62: 3.44
A63: 2014-12-20 | B63: 12.6 | C63: 0 | D63: 0 | G63: 11.275 | H63: 16.25 | I63: 10.235 | L63: 2014-12-20 | M63: 3 | N63: 5 | O63: 9.6 | P63: 0 | R63: 0.8 | S63: 2.45 | T63: -0.88 | U63: 3.44
A64: 2014-12-22 | B64: 13.7 | C64: 0 | D64: 0 | G64: 11.48 | H64: 14.585 | I64: 9.555 | L64: 2014-12-22 | M64: 0 | N64: 2 | O64: -39.9 | P64: 0 | R64: 0.65 | S64: 2.35 | T64: -4.045 | U64: 3.125
A65: 2014-12-27 | B65: 11 | C65: 100 | D65: 25.9 | G65: 11.545 | H65: 14.585 | I65: 9.705 | L65: 2014-12-27 | M65: 1 | N65: 1 | O65: 11.9 | P65: 5.4 | R65: 0.65 | S65: 2.35 | T65: -6.19 | U65: 2.775
A66: 2014-12-29 | B66: 13.6 | C66: 0 | D66: 19.1 | G66: 11.765 | H66: 13.335 | I66: 10.03 | L66: 2014-12-29 | M66: 1 | N66: 2 | O66: -10.6 | P66: 8.8 | R66: 0.7 | S66: 2.35 | T66: -5.385 | U66: 2.89
A67: 2015-01-03 | B67: 10.6 | C67: 50 | D67: 20.4 | G67: 11.81 | H67: 15.835 | I67: 11.05 | L67: 2015-01-03 | M67: 1 | N67: 2 | O67: 21.3 | P67: 5.7 | R67: 0.75 | S67: 2.4 | T67: -4.59 | U67: 3.175
A68: 2015-01-04 | B68: 11.7 | C68: 0 | D68: 0 | G68: 11.88 | H68: 15.835 | I68: 11.05 | L68: 2015-01-04 | M68: 1 | N68: 1 | O68: 8.4 | P68: 0 | R68: 0.75 | S68: 2.35 | T68: -3.24 | U68: 3.175
A69: 2015-01-06 | B69: 13.1 | C69: 100 | D69: 12.7 | G69: 12.045 | H69: 20.835 | I69: 11.685 | L69: 2015-01-06 | M69: 1 | N69: 2 | O69: 10.8 | P69: 4.6 | R69: 0.8 | S69: 2.35 | T69: -3.3 | U69: 3.405
A70: 2015-01-08 | B70: 13.2 | C70: 0 | D70: 16.9 | G70: 12.23 | H70: 20.835 | I70: 12.53 | L70: 2015-01-08 | M70: 0 | N70: 0 | O70: -31.5 | P70: 4.6 | R70: 0.8 | S70: 2.25 | T70: -3.275 | U70: 3.635
A71: 2015-01-10 | B71: 7.7 | C71: 33.3 | D71: 19.1 | G71: 12.12 | H71: 22.5 | I71: 13.485 | L71: 2015-01-10 | M71: 1 | N71: 2 | O71: -58.8 | P71: 7.8 | R71: 0.85 | S71: 2.2 | T71: -5.33 | U71: 4.025
A72: 2015-01-13 | B72: 15 | C72: 33.3 | D72: 12.6 | G72: 12.315 | H72: 24.165 | I72: 14.115 | L72: 2015-01-13 | M72: 0 | N72: 5 | O72: -50.3 | P72: 4 | R72: 0.85 | S72: 2.4 | T72: -5.925 | U72: 4.225
A73: 2015-01-15 | B73: 10.1 | C73: 0 | D73: 16.7 | G73: 12.28 | H73: 24.165 | I73: 14.95 | L73: 2015-01-15 | M73: 0 | N73: 2 | O73: 64.5 | P73: 6 | R73: 0.85 | S73: 2.4 | T73: -3.17 | U73: 4.525
A74: 2015-01-17 | B74: 14.4 | C74: 0 | D74: 0 | G74: 12.245 | H74: 19.165 | I74: 13.685 | L74: 2015-01-17 | M74: 3 | N74: 4 | O74: 3 | P74: 0 | R74: 0.95 | S74: 2.45 | T74: -3.5 | U74: 4.325
A75: 2015-01-20 | B75: 15.9 | C75: 0 | D75: 0 | G75: 12.255 | H75: 19.165 | I75: 13.685 | L75: 2015-01-20 | M75: 0 | N75: 0 | O75: -10.4 | P75: 0 | R75: 0.95 | S75: 2.35 | T75: -2.58 | U75: 4.325
A76: 2015-01-21 | B76: 13.3 | C76: 50 | D76: 27.8 | G76: 12.405 | H76: 21.665 | I76: 14.24 | L76: 2015-01-21 | M76: 1 | N76: 2 | O76: 46.6 | P76: 9 | R76: 0.9 | S76: 2.3 | T76: -1.415 | U76: 4.485
A77: 2015-01-29 | B77: 10.8 | C77: 0 | D77: 16.3 | G77: 12.245 | H77: 21.665 | I77: 13.885 | L77: 2015-01-29 | M77: 0 | N77: 3 | O77: -33.6 | P77: 5.6 | R77: 0.85 | S77: 2.2 | T77: -3.855 | U77: 4.335
A78: 2015-01-31 | B78: 12 | C78: 33.3 | D78: 16.5 | G78: 12.115 | H78: 23.33 | I78: 14.71 | L78: 2015-01-31 | M78: 1 | N78: 2 | O78: -5.4 | P78: 5 | R78: 0.85 | S78: 2.15 | T78: -3.56 | U78: 4.585
A79: 2015-02-03 | B79: 14.4 | C79: 0 | D79: 14.3 | G79: 12.345 | H79: 23.33 | I79: 14.405 | L79: 2015-02-03 | M79: 0 | N79: 1 | O79: 28.9 | P79: 4.2 | R79: 0.85 | S79: 2.1 | T79: -3.955 | U79: 4.49
A80: 2015-02-05 | B80: 13.8 | C80: 0 | D80: 18.1 | G80: 12.525 | H80: 23.33 | I80: 13.06 | L80: 2015-02-05 | M80: 2 | N80: 2 | O80: 31.8 | P80: 4.4 | R80: 0.9 | S80: 2.15 | T80: -1.115 | U80: 4.415
A81: 2015-02-07 | B81: 9.7 | C81: 0 | D81: 0 | G81: 12.515 | H81: 23.33 | I81: 13.06 | L81: 2015-02-07 | M81: 0 | N81: 0 | O81: 3.8 | P81: 0 | R81: 0.9 | S81: 2.1 | T81: 1.715 | U81: 4.415
A82: 2015-02-10 | B82: 9.7 | C82: 0 | D82: 15.8 | G82: 12.315 | H82: 19.995 | I82: 12.61 | L82: 2015-02-10 | M82: 0 | N82: 1 | O82: -19.4 | P82: 6.2 | R82: 0.8 | S82: 1.95 | T82: -0.965 | U82: 4.065
A83: 2015-02-12 | B83: 10.2 | C83: 50 | D83: 53.7 | G83: 12.195 | H83: 22.495 | I83: 15.295 | L83: 2015-02-12 | M83: 0 | N83: 0 | O83: -66.8 | P83: 5.9 | R83: 0.65 | S83: 1.7 | T83: -4.785 | U83: 4.36
A84: 2015-02-14 | B84: 13.4 | C84: 33.3 | D84: 12.7 | G84: 12.18 | H84: 24.16 | I84: 15.93 | L84: 2015-02-14 | M84: 3 | N84: 4 | O84: 9 | P84: 4.5 | R84: 0.8 | S84: 1.8 | T84: -2.34 | U84: 4.585
A85: 2015-02-16 | B85: 12.1 | C85: 33.3 | D85: 18.5 | G85: 12.235 | H85: 20.825 | I85: 15.56 | L85: 2015-02-16 | M85: 1 | N85: 6 | O85: -27.1 | P85: 9.9 | R85: 0.8 | S85: 2.05 | T85: -4.29 | U85: 4.81
A86: 2015-02-18 | B86: 12.1 | C86: 0 | D86: 11.1 | G86: 12.16 | H86: 20.825 | I86: 15.16 | L86: 2015-02-18 | M86: 1 | N86: 4 | O86: 11.5 | P86: 4.9 | R86: 0.8 | S86: 2.15 | T86: -3.185 | U86: 4.615
A87: 2015-02-21 | B87: 10.4 | C87: 0 | D87: 0 | G87: 12.15 | H87: 18.325 | I87: 14.14 | L87: 2015-02-21 | M87: 1 | N87: 3 | O87: -5.7 | P87: 0 | R87: 0.8 | S87: 2.2 | T87: -4.535 | U87: 4.33
A88: 2015-02-25 | B88: 12.4 | C88: 0 | D88: 9.2 | G88: 12.185 | H88: 18.325 | I88: 14.6 | L88: 2015-02-25 | M88: 2 | N88: 3 | O88: 48.7 | P88: 4.8 | R88: 0.85 | S88: =AVERAGE(N69:N88) -> 2.3 | T88: =AVERAGE(O69:O88) -> -2.52 | U88: =AVERAGE(P69:P88) -> 4.57
A89: 2015-02-26 | B89: 12.6 | C89: 50 | D89: 15.1 | G89: =AVERAGE(B70:B89) -> 12.16 | H89: 15.825 | I89: 14.72 | L89: 2015-02-26 | M89: 2 | N89: 3 | O89: -2.2 | P89: 4.8 | R89: =AVERAGE(M70:M89) -> 0.9 | S89: 2.35 | T89: -3.17 | U89: 4.58
A90: 2015-02-28 | B90: 14 | C90: 0 | D90: 0 | G90: 12.2 | H90: 15.825 | I90: 13.875 | L90: 2015-02-28 | M90: 1 | N90: 2 | O90: -25.8 | P90: 0 | R90: 0.95 | S90: 2.45 | T90: -2.885 | U90: 4.35
A91: 2015-03-03 | B91: 11.2 | C91: 0 | D91: 24.3 | G91: 12.375 | H91: 14.16 | I91: 14.135 | L91: 2015-03-03 | M91: 1 | N91: 3 | O91: 31 | P91: 10.7 | R91: 0.95 | S91: 2.5 | T91: 1.605 | U91: 4.495
A92: 2015-03-04 | B92: 8.1 | C92: 0 | D92: 0 | G92: 12.03 | H92: 12.495 | I92: 13.505 | L92: 2015-03-04 | M92: 0 | N92: 0 | P92: 0 | R92: 0.95 | S92: 2.25 | T92: 4.336842105 | U92: 4.295
A93: 2015-03-06 | B93: 14.6 | C93: 0 | D93: 12.5 | G93: 12.255 | H93: 12.495 | I93: 13.295 | L93: 2015-03-06 | M93: 3 | N93: 6 | O93: 7.1 | P93: 4.1 | R93: 1.1 | S93: 2.45 | T93: 1.315789474 | U93: 4.2
A94: 2015-03-08 | B94: 11.9 | C94: 20 | D94: 13.7 | G94: 12.13 | H94: 13.495 | I94: 13.98 | L94: 2015-03-08 | M94: 1 | N94: 3 | O94: -20.1 | P94: 5 | R94: 1 | S94: 2.4 | T94: 0.1 | U94: 4.45
A95: 2015-03-10 | B95: 12.5 | C95: 0 | D95: 0 | G95: 11.96 | H95: 13.495 | I95: 13.98 | L95: 2015-03-10 | M95: 2 | N95: 3 | O95: 10.3 | P95: 0 | R95: 1.1 | S95: 2.55 | T95: 1.189473684 | U95: 4.45
A96: 2015-03-12 | B96: 16.4 | C96: 0 | D96: 0 | G96: 12.115 | H96: 10.995 | I96: 12.59 | L96: 2015-03-12 | M96: 0 | N96: 2 | O96: -54.6 | P96: 0 | R96: 1.05 | S96: 2.55 | T96: -4.136842105 | U96: 4
A97: 2015-03-13 | B97: 16 | C97: 0 | D97: 0 | G97: 12.375 | H97: 10.995 | I97: 11.775 | L97: 2015-03-13 | M97: 2 | N97: 2 | O97: 45.3 | P97: 0 | R97: 1.15 | S97: 2.5 | T97: 0.01578947368 | U97: 3.72
A98: 2015-03-15 | B98: 12.8 | C98: 0 | D98: 0 | G98: 12.415 | H98: 9.33 | I98: 10.95 | L98: 2015-03-15 | M98: 0 | N98: 0 | O98: -81.4 | P98: 0 | R98: 1.1 | S98: 2.4 | T98: -3.984210526 | U98: 3.47
A99: 2015-03-17 | B99: 11.8 | C99: 0 | D99: 0 | G99: 12.285 | H99: 9.33 | I99: 10.235 | L99: 2015-03-17 | M99: 0 | N99: 1 | O99: -1.9 | P99: 0 | R99: 1.1 | S99: 2.4 | T99: -5.605263158 | U99: 3.26
A100: 2015-03-19 | B100: 10.9 | C100: 0 | D100: 0 | G100: 12.14 | H100: 9.33 | I100: 9.33 | L100: 2015-03-19 | M100: 2 | N100: 5 | O100: 50.1 | P100: 0 | R100: 1.1 | S100: 2.55 | T100: -4.642105263 | U100: 3.04
A101: 2015-03-21 | B101: 13.7 | C101: 50 | D101: 11.4 | G101: 12.34 | H101: 11.83 | I101: 9.9 | L101: 2015-03-21 | M101: 0 | N101: 2 | O101: -79.2 | P101: 4.4 | R101: 1.1 | S101: 2.65 | T101: -9.010526316 | U101: 3.26
A102: 2015-03-23 | B102: 13.9 | C102: 0 | D102: 40.5 | G102: 12.55 | H102: 11.83 | I102: 11.135 | L102: 2015-03-23 | M102: 0 | N102: 0 | O102: 3.6 | P102: 8.7 | R102: 1.1 | S102: 2.6 | T102: -7.8 | U102: 3.385
A103: 2015-03-26 | B103: 14.2 | C103: 0 | D103: 0 | G103: 12.75 | H103: 9.33 | I103: 8.45 | L103: 2015-03-26 | M103: 0 | N103: 1 | O103: 8.8 | P103: 0 | R103: 1.1 | S103: 2.65 | T103: -3.821052632 | U103: 3.09
A104: 2015-03-28 | B104: 12.8 | C104: 0 | D104: 0 | G104: 12.72 | H104: 7.665 | I104: 7.815 | L104: 2015-03-28 | M104: 1 | N104: 1 | O104: 27.1 | P104: 0 | R104: 1 | S104: 2.5 | T104: -2.868421053 | U104: 2.865
A105: 2015-03-29 | B105: 10.3 | C105: 0 | D105: 10.8 | G105: 12.63 | H105: 6 | I105: 7.43 | L105: 2015-03-29 | M105: 2 | N105: 4 | O105: 49.3 | P105: 5.8 | R105: 1.05 | S105: 2.4 | T105: 1.152631579 | U105: 2.66
A106: 2015-03-31 | B106: 9.4 | C106: 0 | D106: 0 | G106: 12.495 | H106: 6 | I106: 6.875 | L106: 2015-03-31 | M106: 2 | N106: 2 | O106: 5.9 | P106: 0 | R106: 1.1 | S106: 2.3 | T106: 0.8578947368 | U106: 2.415
A107: 2015-04-02 | B107: 9 | C107: 0 | D107: 0 | G107: 12.425 | H107: 6 | I107: 6.875 | L107: 2015-04-02 | M107: 0 | N107: 1 | O107: 76.2 | P107: 0 | R107: 1.05 | S107: 2.2 | T107: 5.168421053 | U107: 2.415
A108: 2015-04-04 | B108: 8.3 | C108: 0 | D108: 0 | G108: 12.22 | H108: 6 | I108: 6.415 | L108: 2015-04-04 | M108: 0 | N108: 0 | O108: 29 | P108: 0 | R108: 0.95 | S108: 2.05 | T108: 4.131578947 | U108: 2.175
A109: 2015-04-05 | B109: 10 | C109: 0 | D109: 0 | G109: 12.09 | H109: 3.5 | I109: 5.66 | L109: 2015-04-05 | M109: 2 | N109: 3 | O109: 17.3 | P109: 0 | R109: 0.95 | S109: 2.05 | T109: 5.157894737 | U109: 1.935
A110: 2015-04-07 | B110: 10.3 | C110: 0 | D110: 0 | G110: 11.905 | H110: 3.5 | I110: 5.66 | L110: 2015-04-07 | M110: 1 | N110: 2 | O110: 9.1 | P110: 0 | R110: 0.95 | S110: 2.05 | T110: 6.994736842 | U110: 1.935
A111: 2015-04-09 | B111: 15.6 | C111: 0 | D111: 0 | G111: 12.125 | H111: 3.5 | I111: 4.445 | L111: 2015-04-09 | M111: 0 | N111: 0 | O111: -58.5 | P111: 0 | R111: 0.9 | S111: 1.9 | T111: 2.284210526 | U111: 1.4
A112: 2015-04-11 | B112: 8.3 | C112: 0 | D112: 0 | G112: 12.135 | H112: 3.5 | I112: 4.445 | L112: 2015-04-11 | M112: 0 | N112: 0 | P112: 0 | R112: 0.9 | S112: 1.9 | T112: 2.284210526 | U112: 1.4
A113: 2015-04-15 | B113: 10.3 | C113: 0 | D113: 0 | G113: 11.92 | H113: 3.5 | I113: 3.82 | L113: 2015-04-15 | M113: 1 | N113: 3 | O113: -23.4 | P113: 0 | R113: 0.8 | S113: 1.75 | T113: 0.6789473684 | U113: 1.195
A114: 2015-04-17 | B114: 9.6 | C114: 0 | D114: 0 | G114: 11.805 | H114: 2.5 | I114: 3.135 | L114: 2015-04-17 | M114: 0 | N114: 0 | O114: -15.1 | P114: 0 | R114: 0.75 | S114: 1.6 | T114: 0.9421052632 | U114: 0.945
A115: 2015-04-19 | B115: 9.5 | C115: 0 | D115: 0 | G115: 11.655 | H115: 2.5 | I115: 3.135 | L115: 2015-04-19 | M115: 0 | N115: 0 | O115: 9.6 | P115: 0 | R115: 0.65 | S115: 1.45 | T115: 0.9052631579 | U115: 0.945
A116: 2015-04-22 | B116: 11.9 | C116: 25 | D116: 7.9 | G116: 11.43 | H116: 3.75 | I116: 3.53 | L116: 2015-04-22 | M116: 1 | N116: 4 | O116: 25.2 | P116: 5 | R116: 0.7 | S116: 1.55 | T116: 5.105263158 | U116: 1.195
A117: 2015-04-24 | B117: 11.7 | C117: 0 | D117: 15 | G117: 11.215 | H117: 3.75 | I117: 4.28 | L117: 2015-04-24 | M117: 0 | N117: 2 | O117: -12.5 | P117: 5.1 | R117: 0.6 | S117: 1.55 | T117: 2.063157895 | U117: 1.45
A118: 2015-04-26 | B118: 11 | C118: 0 | D118: 0 | G118: 11.125 | H118: 3.75 | I118: 4.28 | L118: 2015-04-26 | M118: 1 | N118: 1 | O118: 1.4 | P118: 0 | R118: 0.65 | S118: 1.6 | T118: 6.421052632 | U118: 1.45
A119: 2015-10-08 | B119: 16.7 | C119: 0 | D119: 18.7 | G119: 11.37 | H119: 3.75 | I119: 5.215 | L119: 2015-10-08 | M119: 0 | N119: 0 | O119: -3.4 | P119: 7.2 | R119: 0.65 | S119: 1.55 | T119: 6.342105263 | U119: 1.81
A120: 2015-10-10 | B120: 15.4 | C120: 0 | D120: 13.7 | G120: 11.595 | H120: 3.75 | I120: 5.9 | L120: 2015-10-10 | M120: 1 | N120: 3 | O120: 1.7 | P120: 3.9 | R120: 0.6 | S120: 1.45 | T120: 3.794736842 | U120: 2.005
A121: 2015-10-11 | B121: 12.9 | C121: 0 | D121: 0 | G121: 11.555 | H121: 1.25 | I121: 5.33 | L121: 2015-10-11 | M121: 0 | N121: 0 | O121: 2.9 | P121: 0 | R121: 0.6 | S121: 1.35 | T121: 8.115789474 | U121: 1.785
A122: 2015-10-14 | B122: 11.2 | C122: 33.3 | D122: 48.7 | G122: 11.42 | H122: 2.915 | I122: 5.74 | L122: 2015-10-14 | M122: 1 | N122: 3 | O122: 51.1 | P122: 16.1 | R122: 0.65 | S122: 1.5 | T122: 10.61578947 | U122: 2.155
A123: 2015-10-15 | B123: 16.2 | C123: 0 | D123: 0 | G123: 11.52 | H123: 2.915 | I123: 5.74 | L123: 2015-10-15 | M123: 1 | N123: 4 | O123: 46.7 | P123: 0 | R123: 0.7 | S123: 1.65 | T123: 12.61052632 | U123: 2.155
A124: 2015-10-17 | B124: 14.2 | C124: 50 | D124: 32.2 | G124: 11.59 | H124: 5.415 | I124: 7.35 | L124: 2015-10-17 | M124: 0 | N124: 0 | O124: 26.2 | P124: 12.7 | R124: 0.65 | S124: 1.6 | T124: 12.56315789 | U124: 2.79
A125: 2015-10-22 | B125: 10.3 | C125: 0 | D125: 0 | G125: 11.59 | H125: 5.415 | I125: 6.81 | L125: 2015-10-22 | M125: 0 | N125: 1 | O125: -54.6 | P125: 0 | R125: 0.55 | S125: 1.45 | T125: 7.094736842 | U125: 2.5
A126: 2015-11-03 | B126: 15.6 | C126: 0 | D126: 0 | G126: 11.9 | H126: 5.415 | I126: 6.81 | L126: 2015-11-03 | M126: 2 | N126: 3 | O126: 13.4 | P126: 0 | R126: 0.55 | S126: 1.5 | T126: 7.489473684 | U126: 2.5
A127: 2015-11-05 | B127: 13.1 | C127: 0 | D127: 0 | G127: 12.105 | H127: 5.415 | I127: 6.81 | L127: 2015-11-05 | M127: 0 | N127: 0 | O127: 13.6 | P127: 0 | R127: 0.55 | S127: 1.45 | T127: 4.194736842 | U127: 2.5
A128: 2015-11-07 | B128: 18.4 | C128: 0 | D128: 23.4 | G128: 12.61 | H128: 5.415 | I128: 7.98 | L128: 2015-11-07 | M128: 1 | N128: 1 | O128: 18.2 | P128: 3.3 | R128: 0.6 | S128: 1.5 | T128: 3.626315789 | U128: 2.665
A129: 2015-11-10 | B129: 15.3 | C129: 0 | D129: 0 | G129: 12.875 | H129: 5.415 | I129: 7.98 | L129: 2015-11-10 | M129: 1 | N129: 3 | O129: 40.9 | P129: 0 | R129: 0.55 | S129: 1.5 | T129: 4.868421053 | U129: 2.665
A130: 2015-11-12 | B130: 12.1 | C130: 0 | D130: 16.3 | G130: 12.965 | H130: 5.415 | I130: 8.795 | L130: 2015-11-12 | M130: 0 | N130: 0 | O130: 72.2 | P130: 4.9 | R130: 0.5 | S130: 1.4 | T130: 8.189473684 | U130: 2.91
A131: 2015-11-14 | B131: 15.8 | C131: 0 | D131: 0 | G131: 12.975 | H131: 5.415 | I131: 8.795 | L131: 2015-11-14 | M131: 4 | N131: 5 | O131: -15.5 | P131: 0 | R131: 0.7 | S131: 1.65 | T131: 10.45263158 | U131: 2.91
A132: 2015-11-16 | B132: 16.9 | C132: 0 | D132: 13.7 | G132: 13.405 | H132: 5.415 | I132: 9.48 | L132: 2015-11-16 | M132: 0 | N132: 2 | O132: 58.1 | P132: 3.6 | R132: 0.7 | S132: 1.75 | T132: 12.835 | U132: 3.09
A133: 2015-11-19 | B133: 11.5 | C133: 0 | D133: 17.5 | G133: 13.465 | H133: 5.415 | I133: 10.355 | L133: 2015-11-19 | M133: 0 | N133: 3 | O133: 8.7 | P133: 5.2 | R133: 0.65 | S133: 1.75 | T133: 14.44 | U133: 3.35
A134: 2015-11-21 | B134: 12 | C134: 25 | D134: 23.1 | G134: 13.585 | H134: 6.665 | I134: 11.51 | L134: 2015-11-21 | M134: 0 | N134: 2 | O134: 54.5 | P134: 10 | R134: 0.65 | S134: 1.85 | T134: 17.92 | U134: 3.85
A135: 2015-11-24 | B135: 14.2 | C135: 0 | D135: 0 | G135: 13.82 | H135: 6.665 | I135: 11.51 | L135: 2015-11-24 | M135: 0 | N135: 2 | O135: -71.9 | P135: 0 | R135: 0.65 | S135: 1.95 | T135: 13.845 | U135: 3.85
A136: 2015-11-25 | B136: 11 | C136: 0 | D136: 11.5 | G136: 13.775 | H136: 5.415 | I136: 11.69 | L136: 2015-11-25 | M136: 0 | N136: 0 | O136: 43.9 | P136: 5.5 | R136: 0.6 | S136: 1.75 | T136: 14.78 | U136: 3.875
A137: 2015-11-28 | B137: 15.3 | C137: 20 | D137: 10.2 | G137: 13.955 | H137: 6.415 | I137: 11.45 | L137: 2015-11-28 | M137: 3 | N137: 5 | O137: -0.1 | P137: 3.9 | R137: 0.75 | S137: 1.9 | T137: 15.4 | U137: 3.815
A138: 2015-12-01 | B138: 16.7 | C138: 33.3 | D138: 12.4 | G138: 14.24 | H138: 8.08 | I138: 12.07 | L138: 2015-12-01 | M138: 1 | N138: 2 | O138: 0.1 | P138: 3.6 | R138: 0.75 | S138: 1.95 | T138: 15.335 | U138: 3.995
A139: 2015-12-03 | B139: 18.1 | C139: 20 | D139: 11.1 | G139: 14.31 | H139: 9.08 | I139: 11.69 | L139: 2015-12-03 | M139: 1 | N139: 3 | O139: -13.4 | P139: 3.3 | R139: 0.8 | S139: 2.1 | T139: 14.835 | U139: 3.8
A140: 2015-12-05 | B140: 14.5 | C140: 0 | D140: 0 | G140: 14.265 | H140: 9.08 | I140: 11.005 | L140: 2015-12-05 | M140: 2 | N140: 4 | O140: -8.5 | P140: 0 | R140: 0.85 | S140: 2.15 | T140: 14.325 | U140: 3.605
A141: 2015-12-06 | B141: 16 | C141: 0 | D141: 0 | G141: 14.42 | H141: 9.08 | I141: 11.005 | L141: 2015-12-06 | M141: 0 | N141: 0 | O141: 14.6 | P141: 0 | R141: 0.85 | S141: 2.15 | T141: 14.91 | U141: 3.605
A142: 2015-12-08 | B142: 12.4 | C142: 33.3 | D142: 16.5 | G142: 14.48 | H142: 9.08 | I142: 9.395 | L142: 2015-12-08 | M142: 1 | N142: 3 | O142: -35.7 | P142: 4.8 | R142: 0.85 | S142: 2.15 | T142: 10.57 | U142: 3.04
A143: 2015-12-10 | B143: 15.4 | C143: 0 | D143: 0 | G143: 14.44 | H143: 9.08 | I143: 9.395 | L143: 2015-12-10 | M143: 0 | N143: 0 | O143: -4.9 | P143: 0 | R143: 0.8 | S143: 1.95 | T143: 7.99 | U143: 3.04
A144: 2015-12-12 | B144: 14.5 | C144: 0 | D144: 0 | G144: 14.455 | H144: 6.58 | I144: 7.785 | L144: 2015-12-12 | M144: 3 | N144: 5 | O144: 24.5 | P144: 0 | R144: 0.95 | S144: 2.2 | T144: 7.905 | U144: 2.405
A145: 2015-12-14 | B145: 10.6 | C145: 66.7 | D145: 48.2 | G145: 14.47 | H145: 9.915 | I145: 10.195 | L145: 2015-12-14 | M145: 0 | N145: 3 | O145: 47.2 | P145: 22.7 | R145: 0.95 | S145: 2.3 | T145: 12.995 | U145: 3.54
A146: 2015-12-16 | B146: 13.3 | C146: 0 | D146: 0 | G146: 14.355 | H146: 9.915 | I146: 10.195 | L146: 2015-12-16 | M146: 0 | N146: 1 | O146: -22.7 | P146: 0 | R146: 0.85 | S146: 2.2 | T146: 11.19 | U146: 3.54
A147: 2015-12-18 | B147: 13.3 | C147: 0 | D147: 29.9 | G147: 14.365 | H147: 9.915 | I147: 11.69 | L147: 2015-12-18 | M147: 2 | N147: 2 | O147: -11.2 | P147: 9 | R147: 0.95 | S147: 2.3 | T147: 9.95 | U147: 3.99
A148: 2015-12-20 | B148: 15.1 | C148: 0 | D148: 18.1 | G148: 14.2 | H148: 9.915 | I148: 11.425 | L148: 2015-12-20 | M148: 0 | N148: 1 | O148: 27.2 | P148: 4 | R148: 0.9 | S148: 2.3 | T148: 10.4 | U148: 4.025
A149: 2015-12-22 | B149: 14.4 | C149: 0 | D149: 0 | G149: 14.155 | H149: 9.915 | I149: 11.425 | L149: 2015-12-22 | M149: 0 | N149: 1 | O149: -16.7 | P149: 0 | R149: 0.85 | S149: 2.2 | T149: 7.52 | U149: 4.025
A150: 2015-12-27 | B150: 15.3 | C150: 0 | D150: 14.8 | G150: 14.315 | H150: 9.915 | I150: 11.35 | L150: 2015-12-27 | M150: 0 | N150: 1 | O150: 82.9 | P150: 3.9 | R150: 0.85 | S150: 2.25 | T150: 8.055 | U150: 3.975
A151: 2015-12-29 | B151: 12.2 | C151: 100 | D151: 22 | G151: 14.135 | H151: 14.915 | I151: 12.45 | L151: 2015-12-29 | M151: 0 | N151: 0 | O151: -31.6 | P151: 4.9 | R151: 0.65 | S151: 2 | T151: 7.25 | U151: 4.22
A152: 2015-12-30 | B152: 12.2 | C152: 0 | D152: 0 | G152: 13.9 | H152: 14.915 | I152: 11.765 | J152: =AVERAGE(E133:E152) ->  | L152: 2015-12-30 | M152: 0 | N152: 0 | O152: -76.4 | P152: 0 | R152: 0.65 | S152: 1.9 | T152: 0.525 | U152: =AVERAGE(P133:P152) -> 4.04
A153: 2016-01-03 | B153: 18.1 | C153: 0 | D153: 0 | G153: =AVERAGE(B134:B153) -> 14.23 | H153: 14.915 | I153: 10.89 | L153: 2016-01-03 | M153: 0 | N153: 2 | O153: -13.1 | P153: 0 | R153: =AVERAGE(M134:M153) -> 0.65 | S153: =AVERAGE(N134:N153) -> 1.85 | T153: =AVERAGE(O134:O153) -> -0.565 | U153: 3.78
A154: 2016-01-04 | B154: 15.4 | C154: 0 | D154: 0 | G154: 14.4 | H154: 13.665 | I154: 9.735 | L154: 2016-01-04 | M154: 0 | N154: 1 | P154: 0 | R154: 0.65 | S154: 1.8 | T154: -3.463157895 | U154: 3.28
A155: 2016-01-07 | B155: 12.4 | C155: 0 | D155: 22.2 | G155: 14.31 | H155: 13.665 | I155: 10.845 | L155: 2016-01-07 | M155: 0 | N155: 1 | O155: 31.8 | P155: 4.8 | R155: 0.65 | S155: 1.75 | T155: 1.994736842 | U155: 3.52
A156: 2016-01-09 | B156: 14.2 | C156: 0 | D156: 20.9 | G156: 14.47 | H156: 13.665 | I156: 11.315 | L156: 2016-01-09 | M156: 0 | N156: 0 | O156: -45.5 | P156: 4.2 | R156: 0.65 | S156: 1.75 | T156: -2.710526316 | U156: 3.455
A157: 2016-01-10 | B157: 10.6 | C157: 50 | D157: 26.6 | G157: 14.235 | H157: 15.165 | I157: 12.135 | L157: 2016-01-10 | M157: 0 | N157: 1 | O157: -8.3 | P157: 5.6 | R157: 0.5 | S157: 1.55 | T157: -3.142105263 | U157: 3.54
A158: 2016-01-13 | B158: 13.9 | C158: 0 | D158: 0 | G158: 14.095 | H158: 13.5 | I158: 11.515 | L158: 2016-01-13 | M158: 1 | N158: 1 | O158: 15.9 | P158: 0 | R158: 0.5 | S158: 1.5 | T158: -2.310526316 | U158: 3.36
A159: 2016-01-16 | B159: 14 | C159: 0 | D159: 0 | G159: 13.89 | H159: 12.5 | I159: 10.96 | L159: 2016-01-16 | M159: 1 | N159: 2 | O159: 1.3 | P159: 0 | R159: 0.5 | S159: 1.45 | T159: -1.536842105 | U159: 3.195
A160: 2016-01-18 | B160: 6.5 | C160: 0 | D160: 0 | G160: 13.49 | H160: 12.5 | I160: 10.96 | L160: 2016-01-18 | M160: 1 | N160: 2 | O160: 1.8 | P160: 0 | R160: 0.45 | S160: 1.35 | T160: -0.9947368421 | U160: 3.195
A161: 2016-01-21 | B161: 13.3 | C161: 0 | D161: 0 | G161: 13.355 | H161: 12.5 | I161: 10.96 | L161: 2016-01-21 | M161: 1 | N161: 1 | O161: -13.6 | P161: 0 | R161: 0.5 | S161: 1.4 | T161: -2.478947368 | U161: 3.195
A162: 2016-01-22 | B162: 16.6 | C162: 0 | D162: 0 | G162: 13.565 | H162: 10.835 | I162: 10.135 | L162: 2016-01-22 | M162: 2 | N162: 2 | O162: 30.9 | P162: 0 | R162: 0.55 | S162: 1.35 | T162: 1.026315789 | U162: 2.955
A163: 2016-01-24 | B163: 13.2 | C163: 20 | D163: 23 | G163: 13.455 | H163: 11.835 | I163: 11.285 | L163: 2016-01-24 | M163: 1 | N163: 6 | O163: -7.8 | P163: 9.1 | R163: 0.6 | S163: 1.65 | T163: 0.8736842105 | U163: 3.41
A164: 2016-01-26 | B164: 16 | C164: 0 | D164: 0 | G164: 13.53 | H164: 11.835 | I164: 11.285 | L164: 2016-01-26 | M164: 2 | N164: 3 | O164: 10.8 | P164: 0 | R164: 0.55 | S164: 1.55 | T164: 0.1526315789 | U164: 3.41
A165: 2016-02-02 | B165: 12.1 | C165: 0 | D165: 0 | G165: 13.605 | H165: 8.5 | I165: 8.875 | L165: 2016-02-02 | M165: 0 | N165: 0 | O165: 31 | P165: 0 | R165: 0.55 | S165: 1.4 | T165: -0.7 | U165: 2.275
A166: 2016-02-04 | B166: 13.8 | C166: 0 | D166: 0 | G166: 13.63 | H166: 8.5 | I166: 8.875 | L166: 2016-02-04 | M166: 0 | N166: 1 | O166: -38.5 | P166: 0 | R166: 0.55 | S166: 1.4 | T166: -1.531578947 | U166: 2.275
A167: 2016-02-06 | B167: 11.8 | C167: 0 | D167: 13.7 | G167: 13.555 | H167: 8.5 | I167: 8.065 | L167: 2016-02-06 | M167: 1 | N167: 2 | O167: 37.2 | P167: 5.1 | R167: 0.5 | S167: 1.4 | T167: 1.015789474 | U167: 2.08
A168: 2016-02-08 | B168: 11.9 | C168: 0 | D168: 0 | G168: 13.395 | H168: 8.5 | I168: 7.16 | L168: 2016-02-08 | M168: 1 | N168: 1 | O168: 49.5 | P168: 0 | R168: 0.55 | S168: 1.4 | T168: 2.189473684 | U168: 1.88
A169: 2016-02-10 | B169: 12.2 | C169: 0 | D169: 0 | G169: 13.285 | H169: 8.5 | I169: 7.16 | L169: 2016-02-10 | M169: 0 | N169: 0 | O169: -21.2 | P169: 0 | R169: 0.55 | S169: 1.35 | T169: 1.952631579 | U169: 1.88
A170: 2016-02-11 | B170: 10.2 | C170: 0 | D170: 0 | G170: 13.03 | H170: 8.5 | I170: 6.42 | L170: 2016-02-11 | M170: 0 | N170: 2 | O170: -69.9 | P170: 0 | R170: 0.55 | S170: 1.4 | T170: -6.089473684 | U170: 1.685
A171: 2016-02-13 | B171: 13.7 | C171: 0 | D171: 9.7 | G171: 13.105 | H171: 3.5 | I171: 5.805 | L171: 2016-02-13 | M171: 1 | N171: 3 | O171: 18.3 | P171: 4.4 | R171: 0.6 | S171: 1.55 | T171: -3.463157895 | U171: 1.66
A172: 2016-02-16 | B172: 15.2 | C172: 0 | D172: 0 | G172: 13.255 | H172: 3.5 | I172: 5.805 | L172: 2016-02-16 | M172: 0 | N172: 1 | O172: -4.1 | P172: 0 | R172: 0.6 | S172: 1.6 | T172: 0.3421052632 | U172: 1.66
A173: 2016-02-18 | B173: 12.8 | C173: 0 | D173: 0 | G173: 12.99 | H173: 3.5 | I173: 5.805 | L173: 2016-02-18 | M173: 0 | N173: 1 | O173: -63.4 | P173: 0 | R173: 0.6 | S173: 1.55 | T173: -2.305263158 | U173: 1.66
A174: 2016-02-20 | B174: 16.3 | C174: 0 | D174: 0 | G174: 13.035 | H174: 3.5 | I174: 5.805 | L174: 2016-02-20 | M174: 0 | N174: 0 | O174: -28.5 | P174: 0 | R174: 0.6 | S174: 1.5 | T174: -3.615 | U174: 1.66
A175: 2016-02-23 | B175: 13.2 | C175: 0 | D175: 0 | G175: 13.075 | H175: 3.5 | I175: 4.695 | L175: 2016-02-23 | M175: 0 | N175: 0 | O175: 27.4 | P175: 0 | R175: 0.6 | S175: 1.45 | T175: -3.835 | U175: 1.42
A176: 2016-02-25 | B176: 15.2 | C176: 33.3 | D176: 11.2 | G176: 13.125 | H176: 5.165 | I176: 4.21 | L176: 2016-02-25 | M176: 0 | N176: 2 | O176: -18.4 | P176: 3.9 | R176: 0.6 | S176: 1.55 | T176: -2.48 | U176: 1.405
G177: 13.25789474 | H177: 2.805263158 | I177: 3.031578947 | R177: 0.6315789474 | S177: 1.578947368 | T177: -2.173684211 | U177: 1.184210526
G178: 13.22222222 | H178: 2.961111111 | I178: 3.2 | R178: 0.6111111111 | S178: 1.611111111 | T178: -3.177777778 | U178: 1.25
G179: 13.17647059 | H179: 3.135294118 | I179: 3.388235294 | R179: 0.5882352941 | S179: 1.588235294 | T179: -3.441176471 | U179: 1.323529412
G180: 13.59375 | H180: 3.33125 | I180: 3.6 | R180: 0.5625 | S180: 1.5625 | T180: -3.76875 | U180: 1.40625
G181: 13.61333333 | H181: 3.553333333 | I181: 3.84 | R181: 0.5333333333 | S181: 1.6 | T181: -3.113333333 | U181: 1.5
G182: 13.4 | H182: 3.807142857 | I182: 4.114285714 | R182: 0.4285714286 | S182: 1.571428571 | T182: -5.542857143 | U182: 1.607142857
G183: 13.41538462 | H183: 2.561538462 | I183: 2.661538462 | R183: 0.3846153846 | S183: 1.230769231 | T183: -5.369230769 | U183: 1.030769231
G184: 13.2 | H184: 2.775 | I184: 2.883333333 | R184: 0.25 | S184: 1.083333333 | T184: -6.716666667 | U184: 1.116666667
G185: 13.3 | H185: 3.027272727 | I185: 3.145454545 | R185: 0.2727272727 | S185: 1.181818182 | T185: -10.14545455 | U185: 1.218181818
G186: 13.25 | H186: 3.33 | I186: 3.46 | R186: 0.3 | S186: 1.2 | T186: -7.31 | U186: 1.34
G187: 13.41111111 | H187: 3.7 | I187: 2.322222222 | R187: 0.2222222222 | S187: 1.111111111 | T187: -12.25555556 | U187: 0.9222222222
G188: 13.6 | H188: 4.1625 | I188: 2.6125 | R188: 0.125 | S188: 1.125 | T188: -19.975 | U188: 1.0375
G189: 13.8 | H189: 4.757142857 | I189: 2.985714286 | R189: 0.1428571429 | S189: 1.285714286 | T189: -19.8 | U189: 1.185714286
G190: 14.4 | H190: 5.55 | I190: 3.483333333 | R190: 0.1666666667 | S190: 1.166666667 | T190: -11.45 | U190: 1.383333333
G191: 14.54 | H191: 6.66 | I191: 2.24 | R191: 0 | S191: 0.8 | T191: -17.4 | U191: 0.78
G192: 14.375 | H192: 8.325 | I192: 2.8 | R192: 0 | S192: 0.75 | T192: -20.725 | U192: 0.975
G193: 14.9 | H193: 11.1 | I193: 3.733333333 | R193: 0 | S193: 0.6666666667 | T193: -6.5 | U193: 1.3
G194: 14.2 | H194: 16.65 | I194: 5.6 | R194: 0 | S194: 1 | T194: 4.5 | U194: 1.95
G195: 15.2 | H195: 33.3 | I195: 11.2 | R195: 0 | S195: 2 | T195: -18.4 | U195: 3.9
U216: =AVERAGE(P197:P216) -> 
G217: =AVERAGE(B198:B217) ->  | R217: =AVERAGE(M198:M217) -> 
J280: =AVERAGE(E261:E280) ->  | U280: =AVERAGE(P261:P280) -> 
G281: =AVERAGE(B262:B281) ->  | R281: =AVERAGE(M262:M281) ->  | S281: =AVERAGE(N262:N281) ->  | T281: =AVERAGE(O262:O281) -> 
U344: =AVERAGE(P325:P344) -> 
G345: =AVERAGE(B326:B345) ->  | R345: =AVERAGE(M326:M345) -> 
... 2 more rows

Sheet HSC
A1: Team | B1: (All)
A2: Name | B2: Mike.Hoffman | C2: 5v5 Score Adjusted
A4: Row Labels | B4: HSCF | C4: iHSC | D4: HSCF%Rel | E4: G60 | G4: HSCF | H4: iHSC | I4: HSCF%Rel | J4: G60
A5: 2011-12-23 | B5: 0.9 | C5: 0 | D5: -19.1 | E5: 0
A6: 2013-03-28 | B6: 1.8 | C6: 2 | D6: 56.5 | E6: 0
A7: 2013-03-30 | B7: 2.1 | C7: 1 | D7: -2.7 | E7: 0
A8: 2013-04-02 | B8: 1.7 | C8: 1 | D8: 2.1 | E8: 0
A9: 2013-12-03 | B9: 0 | C9: 0 | D9: -55.5 | E9: 0
A10: 2013-12-05 | B10: 0 | C10: 0 | D10: -42.6 | E10: 0
A11: 2013-12-07 | B11: 1 | C11: 1 | D11: 37.6 | E11: 0
A12: 2014-02-27 | B12: 3.5 | C12: 1 | D12: 49.2 | E12: 0
A13: 2014-03-02 | B13: 0 | C13: 0 | D13: -80 | E13: 0
A14: 2014-03-04 | B14: 0 | C14: 0 | D14: -55.1 | E14: 0
A15: 2014-03-05 | B15: 3 | C15: 0 | D15: 33.3 | E15: 0
A16: 2014-03-08 | B16: 4.2 | C16: 2 | D16: 46.5 | E16: 0
A17: 2014-03-10 | B17: 1.7 | C17: 0 | D17: -2.5 | E17: 0
A18: 2014-03-15 | B18: 5.1 | C18: 2 | D18: 50.1 | E18: 0
A19: 2014-03-16 | B19: 2.1 | C19: 1 | D19: -0.6 | E19: 0
A20: 2014-03-18 | B20: 1.7 | C20: 1 | D20: -25.4 | E20: 4.6
A21: 2014-03-20 | B21: 3 | C21: 1 | D21: 5.5 | E21: 0
A22: 2014-03-22 | B22: 1.1 | C22: 0 | D22: 58.4 | E22: 0
A23: 2014-03-24 | B23: 0 | C23: 0 | D23: -55.2 | E23: 0
A24: 2014-03-25 | B24: 2.3 | C24: 1 | D24: 0 | E24: 0 | G24: =AVERAGE(B5:B24) -> 1.76 | H24: =AVERAGE(C5:C24) -> 0.7 | I24: 0.025 | J24: 0.23
A25: 2014-03-28 | B25: 1 | C25: 0 | D25: -17.2 | E25: 0 | G25: =AVERAGE(B6:B25) -> 1.765 | H25: 0.7 | I25: 0.12 | J25: 0.23
A26: 2014-03-30 | B26: 1 | C26: 1 | D26: -31.3 | E26: 0 | G26: 1.725 | H26: 0.65 | I26: -4.27 | J26: 0.23
A27: 2014-03-31 | B27: 1.8 | C27: 1 | D27: -32.6 | E27: 0 | G27: 1.71 | H27: 0.65 | I27: -5.765 | J27: 0.23
A28: 2014-04-02 | B28: 2.1 | C28: 0 | D28: 7.3 | E28: 0 | G28: 1.73 | H28: 0.6 | I28: -5.505 | J28: 0.23
A29: 2014-04-04 | B29: 0.9 | C29: 0 | D29: 1.1 | E29: 0 | G29: 1.775 | H29: 0.6 | I29: -2.675 | J29: 0.23
A30: 2014-04-05 | B30: 1.1 | C30: 0 | D30: -3.8 | E30: 0 | G30: 1.83 | H30: 0.6 | I30: -0.735 | J30: 0.23
A31: 2014-04-10 | B31: 2.6 | C31: 2 | D31: -10.6 | E31: 6.2 | G31: 1.91 | H31: 0.65 | I31: -3.145 | J31: 0.54
A32: 2014-04-12 | B32: 0 | C32: 0 | D32: -66.2 | E32: 0 | G32: 1.735 | H32: 0.6 | I32: -8.915 | J32: 0.54
A33: 2014-04-13 | B33: 2.4 | C33: 2 | D33: 2.7 | E33: 0 | G33: 1.855 | H33: 0.7 | I33: -4.78 | J33: 0.54
A34: 2014-10-09 | B34: 1.2 | C34: 1 | D34: -15.9 | E34: 0 | G34: 1.915 | H34: 0.75 | I34: -2.82 | J34: 0.54
A35: 2014-10-11 | B35: 2.1 | C35: 0 | D35: 32.5 | E35: 0 | G35: 1.87 | H35: 0.75 | I35: -2.86 | J35: 0.54
A36: 2014-10-18 | B36: 3 | C36: 2 | D36: 15.3 | E36: 5.2 | G36: 1.81 | H36: 0.75 | I36: -4.42 | J36: 0.8
A37: 2014-10-25 | B37: 1.9 | C37: 0 | D37: 11.1 | E37: 0 | G37: 1.82 | H37: 0.75 | I37: -3.74 | J37: 0.8
A38: 2014-10-26 | B38: 0.9 | C38: 1 | D38: 41.1 | E38: 0 | G38: 1.61 | H38: 0.7 | I38: -4.19 | J38: 0.8
A39: 2014-10-30 | B39: 3.7 | C39: 2 | D39: 16.9 | E39: 0 | G39: 1.69 | H39: 0.75 | I39: -3.315 | J39: 0.8
A40: 2014-11-01 | B40: 3 | C40: 1 | D40: 4.4 | E40: 0 | G40: 1.755 | H40: 0.75 | I40: -1.825 | J40: 0.57
A41: 2014-11-04 | B41: 0.9 | C41: 0 | D41: 44.5 | E41: 0 | G41: 1.65 | H41: 0.7 | I41: 0.125 | J41: 0.57
A42: 2014-11-06 | B42: 1 | C42: 1 | D42: -24.9 | E42: 13.8 | G42: 1.645 | H42: 0.75 | I42: -4.04 | J42: 1.26
A43: 2014-11-08 | B43: 4.9 | C43: 1 | D43: 26.3 | E43: 0 | G43: 1.89 | H43: 0.8 | I43: 0.035 | J43: 1.26
A44: 2014-11-09 | B44: 3.6 | C44: 3 | D44: 23.4 | E44: 6.3 | G44: 1.955 | H44: 0.9 | I44: 1.205 | J44: 1.575
A45: 2014-11-11 | B45: 3.9 | C45: 1 | D45: 54.8 | E45: 6.2 | G45: 2.1 | H45: 0.95 | I45: 4.805 | J45: 1.885
A46: 2014-11-13 | B46: 0 | C46: 0 | D46: -26.7 | E46: 6.5 | G46: 2.05 | H46: 0.9 | I46: 5.035 | J46: 2.21
A47: 2014-11-15 | B47: 1.1 | C47: 0 | D47: 5.4 | E47: 0 | G47: 2.015 | H47: 0.85 | I47: 6.935 | J47: 2.21
A48: 2014-11-20 | B48: 1.1 | C48: 1 | D48: -18.6 | E48: 0 | G48: 1.965 | H48: 0.9 | I48: 5.64 | J48: 2.21
A49: 2014-11-22 | B49: 1.9 | C49: 0 | D49: 12 | E49: 0 | G49: 2.015 | H49: 0.9 | I49: 6.185 | J49: 2.21
A50: 2014-11-24 | B50: 0 | C50: 0 | D50: -32 | E50: 0 | G50: 1.96 | H50: 0.9 | I50: 4.775 | J50: 2.21
A51: 2014-11-25 | B51: 1 | C51: 0 | D51: -17.7 | E51: 0 | G51: 1.88 | H51: 0.8 | I51: 4.42 | J51: 1.9
A52: 2014-11-28 | B52: 0 | C52: 0 | D52: -38.4 | E52: 0 | G52: 1.88 | H52: 0.8 | I52: 5.81 | J52: 1.9
A53: 2014-11-29 | B53: 1.9 | C53: 0 | D53: 9.4 | E53: 0 | G53: 1.855 | H53: 0.7 | I53: 6.145 | J53: 1.9
A54: 2014-12-02 | B54: 1.8 | C54: 1 | D54: 9.6 | E54: 4 | G54: 1.885 | H54: 0.7 | I54: 7.42 | J54: 2.1
A55: 2014-12-04 | B55: 1 | C55: 0 | D55: -28.8 | E55: 0 | G55: 1.83 | H55: 0.7 | I55: 4.355 | J55: 2.1
A56: 2014-12-06 | B56: 2.8 | C56: 2 | D56: 23.3 | E56: 0 | G56: 1.82 | H56: 0.7 | I56: 4.755 | J56: 1.84
A57: 2014-12-07 | B57: 3 | C57: 1 | D57: 15.2 | E57: 0 | G57: 1.875 | H57: 0.75 | I57: 4.96 | J57: 1.84
A58: 2014-12-11 | B58: 1.8 | C58: 1 | D58: -11.3 | E58: 0 | G58: 1.92 | H58: 0.75 | I58: 2.34 | J58: 1.84
A59: 2014-12-13 | B59: 1.1 | C59: 0 | D59: 36.8 | E59: 0 | G59: 1.79 | H59: 0.65 | I59: 3.335 | J59: 1.84
A60: 2014-12-15 | B60: 2.1 | C60: 1 | D60: -25 | E60: 0 | G60: 1.745 | H60: 0.65 | I60: 1.865 | J60: 1.84
A61: 2014-12-17 | B61: 0 | C61: 0 | D61: -52.8 | E61: 0 | G61: 1.7 | H61: 0.65 | I61: -3 | J61: 1.84
A62: 2014-12-19 | B62: 4.8 | C62: 2 | D62: 34.2 | E62: 8.8 | G62: 1.89 | H62: 0.7 | I62: -0.045 | J62: 1.59
A63: 2014-12-20 | B63: 5.3 | C63: 3 | D63: 9.6 | E63: 0 | G63: 1.91 | H63: 0.8 | I63: -0.88 | J63: 1.59
A64: 2014-12-22 | B64: 0.7 | C64: 0 | D64: -39.9 | E64: 0 | G64: 1.765 | H64: 0.65 | I64: -4.045 | J64: 1.275
A65: 2014-12-27 | B65: 1 | C65: 1 | D65: 11.9 | E65: 5.4 | G65: 1.62 | H65: 0.65 | I65: -6.19 | J65: 1.235
A66: 2014-12-29 | B66: 2.8 | C66: 1 | D66: -10.6 | E66: 0 | G66: 1.76 | H66: 0.7 | I66: -5.385 | J66: 0.91
A67: 2015-01-03 | B67: 3.3 | C67: 1 | D67: 21.3 | E67: 5.7 | G67: 1.87 | H67: 0.75 | I67: -4.59 | J67: 1.195
A68: 2015-01-04 | B68: 2 | C68: 1 | D68: 8.4 | E68: 0 | G68: 1.915 | H68: 0.75 | I68: -3.24 | J68: 1.195
A69: 2015-01-06 | B69: 4.2 | C69: 1 | D69: 10.8 | E69: 4.6 | G69: 2.03 | H69: 0.8 | I69: -3.3 | J69: 1.425
A70: 2015-01-08 | B70: 1 | C70: 0 | D70: -31.5 | E70: 0 | G70: 2.08 | H70: 0.8 | I70: -3.275 | J70: 1.425
A71: 2015-01-10 | B71: 1 | C71: 1 | D71: -58.8 | E71: 7.8 | G71: 2.08 | H71: 0.85 | I71: -5.33 | J71: 1.815
A72: 2015-01-13 | B72: 0 | C72: 0 | D72: -50.3 | E72: 4 | G72: 2.08 | H72: 0.85 | I72: -5.925 | J72: 2.015
A73: 2015-01-15 | B73: 1 | C73: 0 | D73: 64.5 | E73: 0 | G73: 2.035 | H73: 0.85 | I73: -3.17 | J73: 2.015
A74: 2015-01-17 | B74: 7 | C74: 3 | D74: 3 | E74: 0 | G74: 2.295 | H74: 0.95 | I74: -3.5 | J74: 1.815
A75: 2015-01-20 | B75: 2 | C75: 0 | D75: -10.4 | E75: 0 | G75: 2.345 | H75: 0.95 | I75: -2.58 | J75: 1.815
A76: 2015-01-21 | B76: 3.7 | C76: 1 | D76: 46.6 | E76: 4.5 | G76: 2.39 | H76: 0.9 | I76: -1.415 | J76: 2.04
A77: 2015-01-29 | B77: 1.9 | C77: 0 | D77: -33.6 | E77: 0 | G77: 2.335 | H77: 0.85 | I77: -3.855 | J77: 2.04
A78: 2015-01-31 | B78: 1.1 | C78: 1 | D78: -5.4 | E78: 5 | G78: 2.3 | H78: 0.85 | I78: -3.56 | J78: 2.29
A79: 2015-02-03 | B79: 1 | C79: 0 | D79: 28.9 | E79: 0 | G79: 2.295 | H79: 0.85 | I79: -3.955 | J79: 2.29
A80: 2015-02-05 | B80: 3.7 | C80: 2 | D80: 31.8 | E80: 0 | G80: 2.375 | H80: 0.9 | I80: -1.115 | J80: 2.29
A81: 2015-02-07 | B81: 0.9 | C81: 0 | D81: 3.8 | E81: 0 | G81: 2.42 | H81: 0.9 | I81: 1.715 | J81: 2.29
A82: 2015-02-10 | B82: 2 | C82: 0 | D82: -19.4 | E82: 0 | G82: 2.28 | H82: 0.8 | I82: -0.965 | J82: 1.85
A83: 2015-02-12 | B83: 0 | C83: 0 | D83: -66.8 | E83: 5.9 | G83: 2.015 | H83: 0.65 | I83: -4.785 | J83: 2.145
A84: 2015-02-14 | B84: 4.4 | C84: 3 | D84: 9 | E84: 4.5 | G84: 2.2 | H84: 0.8 | I84: -2.34 | J84: 2.37
A85: 2015-02-16 | B85: 4.8 | C85: 1 | D85: -27.1 | E85: 5 | G85: 2.39 | H85: 0.8 | I85: -4.29 | J85: 2.35
A86: 2015-02-18 | B86: 3 | C86: 1 | D86: 11.5 | E86: 0 | G86: 2.4 | H86: 0.8 | I86: -3.185 | J86: 2.35
A87: 2015-02-21 | B87: 1.9 | C87: 1 | D87: -5.7 | E87: 0 | G87: 2.33 | H87: 0.8 | I87: -4.535 | J87: 2.065
A88: 2015-02-25 | B88: 5.4 | C88: 2 | D88: 48.7 | E88: 0 | G88: 2.5 | H88: 0.85 | I88: -2.52 | J88: 2.065
A89: 2015-02-26 | B89: 3.3 | C89: 2 | D89: -2.2 | E89: 4.8 | G89: =AVERAGE(B70:B89) -> 2.455 | H89: 0.9 | I89: -3.17 | J89: 2.075
A90: 2015-02-28 | B90: 1.1 | C90: 1 | D90: -25.8 | E90: 0 | G90: 2.46 | H90: 0.95 | I90: -2.885 | J90: 2.075
A91: 2015-03-03 | B91: 2.1 | C91: 1 | D91: 31 | E91: 0 | G91: 2.515 | H91: 0.95 | I91: 1.605 | J91: 1.685
A92: 2015-03-04 | B92: 0 | C92: 0 | E92: 0 | G92: 2.515 | H92: 0.95 | I92: 4.336842105 | J92: 1.485
A93: 2015-03-06 | B93: 5.5 | C93: 3 | D93: 7.1 | E93: 0 | G93: 2.74 | H93: 1.1 | I93: 1.315789474 | J93: 1.485
A94: 2015-03-08 | B94: 2.1 | C94: 1 | D94: -20.1 | E94: 5 | G94: 2.495 | H94: 1 | I94: 0.1 | J94: 1.735
A95: 2015-03-10 | B95: 5.3 | C95: 2 | D95: 10.3 | E95: 0 | G95: 2.66 | H95: 1.1 | I95: 1.189473684 | J95: 1.735
A96: 2015-03-12 | B96: 0 | C96: 0 | D96: -54.6 | E96: 0 | G96: 2.475 | H96: 1.05 | I96: -4.136842105 | J96: 1.51
A97: 2015-03-13 | B97: 6.3 | C97: 2 | D97: 45.3 | E97: 0 | G97: 2.695 | H97: 1.15 | I97: 0.01578947368 | J97: 1.51
A98: 2015-03-15 | B98: 0 | C98: 0 | D98: -81.4 | E98: 0 | G98: 2.64 | H98: 1.1 | I98: -3.984210526 | J98: 1.26
A99: 2015-03-17 | B99: 2 | C99: 0 | D99: -1.9 | E99: 0 | G99: 2.69 | H99: 1.1 | I99: -5.605263158 | J99: 1.26
A100: 2015-03-19 | B100: 5.9 | C100: 2 | D100: 50.1 | E100: 0 | G100: 2.8 | H100: 1.1 | I100: -4.642105263 | J100: 1.26
A101: 2015-03-21 | B101: 0 | C101: 0 | D101: -79.2 | E101: 4.4 | G101: 2.755 | H101: 1.1 | I101: -9.010526316 | J101: 1.48
A102: 2015-03-23 | B102: 3 | C102: 0 | D102: 3.6 | E102: 0 | G102: 2.805 | H102: 1.1 | I102: -7.8 | J102: 1.48
A103: 2015-03-26 | B103: 1.9 | C103: 0 | D103: 8.8 | E103: 0 | G103: 2.9 | H103: 1.1 | I103: -3.821052632 | J103: 1.185
A104: 2015-03-28 | B104: 1.8 | C104: 1 | D104: 27.1 | E104: 0 | G104: 2.77 | H104: 1 | I104: -2.868421053 | J104: 0.96
A105: 2015-03-29 | B105: 5.7 | C105: 2 | D105: 49.3 | E105: 0 | G105: 2.815 | H105: 1.05 | I105: 1.152631579 | J105: 0.71
A106: 2015-03-31 | B106: 2.9 | C106: 2 | D106: 5.9 | E106: 0 | G106: 2.81 | H106: 1.1 | I106: 0.8578947368 | J106: 0.71
A107: 2015-04-02 | B107: 1 | C107: 0 | D107: 76.2 | E107: 0 | G107: 2.765 | H107: 1.05 | I107: 5.168421053 | J107: 0.71
A108: 2015-04-04 | B108: 2.7 | C108: 0 | D108: 29 | E108: 0 | G108: 2.63 | H108: 0.95 | I108: 4.131578947 | J108: 0.71
A109: 2015-04-05 | B109: 3.9 | C109: 2 | D109: 17.3 | E109: 0 | G109: 2.66 | H109: 0.95 | I109: 5.157894737 | J109: 0.47
A110: 2015-04-07 | B110: 1.9 | C110: 1 | D110: 9.1 | E110: 0 | G110: 2.7 | H110: 0.95 | I110: 6.994736842 | J110: 0.47
A111: 2015-04-09 | B111: 0 | C111: 0 | D111: -58.5 | E111: 0 | G111: 2.595 | H111: 0.9 | I111: 2.284210526 | J111: 0.47
A112: 2015-04-11 | B112: 0 | C112: 0 | E112: 0 | G112: 2.595 | H112: 0.9 | I112: 2.284210526 | J112: 0.47
A113: 2015-04-15 | B113: 1.1 | C113: 1 | D113: -23.4 | E113: 0 | G113: 2.375 | H113: 0.8 | I113: 0.6789473684 | J113: 0.47
A114: 2015-04-17 | B114: 0 | C114: 0 | D114: -15.1 | E114: 0 | G114: 2.27 | H114: 0.75 | I114: 0.9421052632 | J114: 0.22
A115: 2015-04-19 | B115: 2.2 | C115: 0 | D115: 9.6 | E115: 0 | G115: 2.115 | H115: 0.65 | I115: 0.9052631579 | J115: 0.22
A116: 2015-04-22 | B116: 4 | C116: 1 | D116: 25.2 | E116: 5 | G116: 2.315 | H116: 0.7 | I116: 5.105263158 | J116: 0.47
A117: 2015-04-24 | B117: 1.3 | C117: 0 | D117: -12.5 | E117: 0 | G117: 2.065 | H117: 0.6 | I117: 2.063157895 | J117: 0.47
A118: 2015-04-26 | B118: 1.8 | C118: 1 | D118: 1.4 | E118: 0 | G118: 2.155 | H118: 0.65 | I118: 6.421052632 | J118: 0.47
A119: 2015-10-08 | B119: 3.4 | C119: 0 | D119: -3.4 | E119: 0 | G119: 2.225 | H119: 0.65 | I119: 6.342105263 | J119: 0.47
A120: 2015-10-10 | B120: 2.9 | C120: 1 | D120: 1.7 | E120: 0 | G120: 2.075 | H120: 0.6 | I120: 3.794736842 | J120: 0.47
A121: 2015-10-11 | B121: 1.8 | C121: 0 | D121: 2.9 | E121: 0 | G121: 2.165 | H121: 0.6 | I121: 8.115789474 | J121: 0.25
A122: 2015-10-14 | B122: 4.2 | C122: 1 | D122: 51.1 | E122: 5.4 | G122: 2.225 | H122: 0.65 | I122: 10.61578947 | J122: 0.52
A123: 2015-10-15 | B123: 5.1 | C123: 1 | D123: 46.7 | E123: 0 | G123: 2.385 | H123: 0.7 | I123: 12.61052632 | J123: 0.52
A124: 2015-10-17 | B124: 1.9 | C124: 0 | D124: 26.2 | E124: 8.5 | G124: 2.39 | H124: 0.65 | I124: 12.56315789 | J124: 0.945
A125: 2015-10-22 | B125: 0 | C125: 0 | D125: -54.6 | E125: 0 | G125: 2.105 | H125: 0.55 | I125: 7.094736842 | J125: 0.945
A126: 2015-11-03 | B126: 5.3 | C126: 2 | D126: 13.4 | E126: 0 | G126: 2.225 | H126: 0.55 | I126: 7.489473684 | J126: 0.945
A127: 2015-11-05 | B127: 4.1 | C127: 0 | D127: 13.6 | E127: 0 | G127: 2.38 | H127: 0.55 | I127: 4.194736842 | J127: 0.945
A128: 2015-11-07 | B128: 3.7 | C128: 1 | D128: 18.2 | E128: 0 | G128: 2.43 | H128: 0.6 | I128: 3.626315789 | J128: 0.945
A129: 2015-11-10 | B129: 1.3 | C129: 1 | D129: 40.9 | E129: 0 | G129: 2.3 | H129: 0.55 | I129: 4.868421053 | J129: 0.945
A130: 2015-11-12 | B130: 0.9 | C130: 0 | D130: 72.2 | E130: 0 | G130: 2.25 | H130: 0.5 | I130: 8.189473684 | J130: 0.945
A131: 2015-11-14 | B131: 4.9 | C131: 4 | D131: -15.5 | E131: 0 | G131: 2.495 | H131: 0.7 | I131: 10.45263158 | J131: 0.945
A132: 2015-11-16 | B132: 2.9 | C132: 0 | D132: 58.1 | E132: 0 | G132: 2.64 | H132: 0.7 | I132: 12.835 | J132: 0.945
A133: 2015-11-19 | B133: 1 | C133: 0 | D133: 8.7 | E133: 0 | G133: 2.635 | H133: 0.65 | I133: 14.44 | J133: 0.945
A134: 2015-11-21 | B134: 2 | C134: 0 | D134: 54.5 | E134: 5 | G134: 2.735 | H134: 0.65 | I134: 17.92 | J134: 1.195
A135: 2015-11-24 | B135: 0 | C135: 0 | D135: -71.9 | E135: 0 | G135: 2.625 | H135: 0.65 | I135: 13.845 | J135: 1.195
A136: 2015-11-25 | B136: 3.2 | C136: 0 | D136: 43.9 | E136: 0 | G136: 2.585 | H136: 0.6 | I136: 14.78 | J136: 0.945
A137: 2015-11-28 | B137: 3.9 | C137: 3 | D137: -0.1 | E137: 3.9 | G137: 2.715 | H137: 0.75 | I137: 15.4 | J137: 1.14
A138: 2015-12-01 | B138: 2.8 | C138: 1 | D138: 0.1 | E138: 3.6 | G138: 2.765 | H138: 0.75 | I138: 15.335 | J138: 1.32
A139: 2015-12-03 | B139: 1.9 | C139: 1 | D139: -13.4 | E139: 3.3 | G139: 2.69 | H139: 0.8 | I139: 14.835 | J139: 1.485
A140: 2015-12-05 | B140: 2.7 | C140: 2 | D140: -8.5 | E140: 0 | G140: 2.68 | H140: 0.85 | I140: 14.325 | J140: 1.485
A141: 2015-12-06 | B141: 2.2 | C141: 0 | D141: 14.6 | E141: 0 | G141: 2.7 | H141: 0.85 | I141: 14.91 | J141: 1.485
A142: 2015-12-08 | B142: 1 | C142: 1 | D142: -35.7 | E142: 4.8 | G142: 2.54 | H142: 0.85 | I142: 10.57 | J142: 1.455
A143: 2015-12-10 | B143: 2.5 | C143: 0 | D143: -4.9 | E143: 0 | G143: 2.41 | H143: 0.8 | I143: 7.99 | J143: 1.455
A144: 2015-12-12 | B144: 6.1 | C144: 3 | D144: 24.5 | E144: 0 | G144: 2.62 | H144: 0.95 | I144: 7.905 | J144: 1.03
A145: 2015-12-14 | B145: 1 | C145: 0 | D145: 47.2 | E145: 11.3 | G145: 2.67 | H145: 0.95 | I145: 12.995 | J145: 1.595
A146: 2015-12-16 | B146: 1 | C146: 0 | D146: -22.7 | E146: 0 | G146: 2.455 | H146: 0.85 | I146: 11.19 | J146: 1.595
A147: 2015-12-18 | B147: 3 | C147: 2 | D147: -11.2 | E147: 0 | G147: 2.4 | H147: 0.95 | I147: 9.95 | J147: 1.595
A148: 2015-12-20 | B148: 1.9 | C148: 0 | D148: 27.2 | E148: 0 | G148: 2.31 | H148: 0.9 | I148: 10.4 | J148: 1.595
A149: 2015-12-22 | B149: 0 | C149: 0 | D149: -16.7 | E149: 0 | G149: 2.245 | H149: 0.85 | I149: 7.52 | J149: 1.595
A150: 2015-12-27 | B150: 2 | C150: 0 | D150: 82.9 | E150: 0 | G150: 2.3 | H150: 0.85 | I150: 8.055 | J150: 1.595
A151: 2015-12-29 | B151: 1.8 | C151: 0 | D151: -31.6 | E151: 4.9 | G151: 2.145 | H151: 0.65 | I151: 7.25 | J151: 1.84
A152: 2015-12-30 | B152: 0 | C152: 0 | D152: -76.4 | E152: 0 | G152: 2 | H152: 0.65 | I152: 0.525 | J152: =AVERAGE(E133:E152) -> 1.84
A153: 2016-01-03 | B153: 1.1 | C153: 0 | D153: -13.1 | E153: 0 | G153: =AVERAGE(B134:B153) -> 2.005 | H153: 0.65 | I153: -0.565 | J153: 1.84
A154: 2016-01-04 | B154: 0 | C154: 0 | E154: 0 | G154: 1.905 | H154: 0.65 | I154: -3.463157895 | J154: 1.59
A155: 2016-01-07 | B155: 2.9 | C155: 0 | D155: 31.8 | E155: 0 | G155: 2.05 | H155: 0.65 | I155: 1.994736842 | J155: 1.59
A156: 2016-01-09 | B156: 1 | C156: 0 | D156: -45.5 | E156: 0 | G156: 1.94 | H156: 0.65 | I156: -2.710526316 | J156: 1.59
A157: 2016-01-10 | B157: 1 | C157: 0 | D157: -8.3 | E157: 5.7 | G157: 1.795 | H157: 0.5 | I157: -3.142105263 | J157: 1.68
A158: 2016-01-13 | B158: 3.2 | C158: 1 | D158: 15.9 | E158: 0 | G158: 1.815 | H158: 0.5 | I158: -2.310526316 | J158: 1.5
A159: 2016-01-16 | B159: 2.8 | C159: 1 | D159: 1.3 | E159: 0 | G159: 1.86 | H159: 0.5 | I159: -1.536842105 | J159: 1.335
A160: 2016-01-18 | B160: 1.1 | C160: 1 | D160: 1.8 | E160: 0 | G160: 1.78 | H160: 0.45 | I160: -0.9947368421 | J160: 1.335
A161: 2016-01-21 | B161: 5.3 | C161: 1 | D161: -13.6 | E161: 0 | G161: 1.935 | H161: 0.5 | I161: -2.478947368 | J161: 1.335
A162: 2016-01-22 | B162: 4.5 | C162: 2 | D162: 30.9 | E162: 0 | G162: 2.11 | H162: 0.55 | I162: 1.026315789 | J162: 1.095
A163: 2016-01-24 | B163: 3.5 | C163: 1 | D163: -7.8 | E163: 4.6 | G163: 2.16 | H163: 0.6 | I163: 0.8736842105 | J163: 1.325
A164: 2016-01-26 | B164: 3.6 | C164: 2 | D164: 10.8 | E164: 0 | G164: 2.035 | H164: 0.55 | I164: 0.1526315789 | J164: 1.325
A165: 2016-02-02 | B165: 2.8 | C165: 0 | D165: 31 | E165: 0 | G165: 2.125 | H165: 0.55 | I165: -0.7 | J165: 0.76
A166: 2016-02-04 | B166: 1 | C166: 0 | D166: -38.5 | E166: 0 | G166: 2.125 | H166: 0.55 | I166: -1.531578947 | J166: 0.76
A167: 2016-02-06 | B167: 3.8 | C167: 1 | D167: 37.2 | E167: 0 | G167: 2.165 | H167: 0.5 | I167: 1.015789474 | J167: 0.76
A168: 2016-02-08 | B168: 1.8 | C168: 1 | D168: 49.5 | E168: 0 | G168: 2.16 | H168: 0.55 | I168: 2.189473684 | J168: 0.76
A169: 2016-02-10 | B169: 2 | C169: 0 | D169: -21.2 | E169: 0 | G169: 2.26 | H169: 0.55 | I169: 1.952631579 | J169: 0.76
A170: 2016-02-11 | B170: 0 | C170: 0 | D170: -69.9 | E170: 0 | G170: 2.16 | H170: 0.55 | I170: -6.089473684 | J170: 0.76
A171: 2016-02-13 | B171: 6.4 | C171: 1 | D171: 18.3 | E171: 0 | G171: 2.39 | H171: 0.6 | I171: -3.463157895 | J171: 0.515
A172: 2016-02-16 | B172: 1.9 | C172: 0 | D172: -4.1 | E172: 0 | G172: 2.485 | H172: 0.6 | I172: 0.3421052632 | J172: 0.515
A173: 2016-02-18 | B173: 0 | C173: 0 | D173: -63.4 | E173: 0 | G173: 2.43 | H173: 0.6 | I173: -2.305263158 | J173: 0.515
A174: 2016-02-20 | B174: 0 | C174: 0 | D174: -28.5 | E174: 0 | G174: 2.43 | H174: 0.6 | I174: -3.615 | J174: 0.515
A175: 2016-02-23 | B175: 2.3 | C175: 0 | D175: 27.4 | E175: 0 | G175: 2.4 | H175: 0.6 | I175: -3.835 | J175: 0.515
A176: 2016-02-25 | B176: 1 | C176: 0 | D176: -18.4 | E176: 3.9 | G176: 2.4 | H176: 0.6 | I176: -2.48 | J176: 0.71
G177: 2.473684211 | H177: 0.6315789474 | I177: -2.173684211 | J177: 0.4473684211
G178: 2.433333333 | H178: 0.6111111111 | I178: -3.177777778 | J178: 0.4722222222
G179: 2.411764706 | H179: 0.5882352941 | I179: -3.441176471 | J179: 0.5
G180: 2.49375 | H180: 0.5625 | I180: -3.76875 | J180: 0.53125
G181: 2.306666667 | H181: 0.5333333333 | I181: -3.113333333 | J181: 0.5666666667
G182: 2.15 | H182: 0.4285714286 | I182: -5.542857143 | J182: 0.6071428571
G183: 2.046153846 | H183: 0.3846153846 | I183: -5.369230769 | J183: 0.3
G184: 1.916666667 | H184: 0.25 | I184: -6.716666667 | J184: 0.325
G185: 1.836363636 | H185: 0.2727272727 | I185: -10.14545455 | J185: 0.3545454545
G186: 1.92 | H186: 0.3 | I186: -7.31 | J186: 0.39
G187: 1.711111111 | H187: 0.2222222222 | I187: -12.25555556 | J187: 0.4333333333
G188: 1.7 | H188: 0.125 | I188: -19.975 | J188: 0.4875
G189: 1.657142857 | H189: 0.1428571429 | I189: -19.8 | J189: 0.5571428571
G190: 1.933333333 | H190: 0.1666666667 | I190: -11.45 | J190: 0.65
G191: 1.04 | H191: 0 | I191: -17.4 | J191: 0.78
G192: 0.825 | H192: 0 | I192: -20.725 | J192: 0.975
G193: 1.1 | H193: 0 | I193: -6.5 | J193: 1.3
G194: 1.65 | H194: 0 | I194: 4.5 | J194: 1.95
G195: 1 | H195: 0 | I195: -18.4 | J195: 3.9
G217: =AVERAGE(B198:B217) -> 
J280: =AVERAGE(E261:E280) -> 
G281: =AVERAGE(B262:B281) -> 
G345: =AVERAGE(B326:B345) -> 
J408: =AVERAGE(E389:E408) -> 
G409: =AVERAGE(B390:B409) -> 
... 7 more rows
